BODY,BODY NAME,DATE,TRANSACTION NUMBER,THEIR REF,CATEGORY,AMOUNT,SUPPLIER NAME,SUPPLIER CODE,EXPENSE AREA,EXPENSE TYPE,EXPENSE CODE
http://statistics.data.gov.uk/id/local-authority/12UE,Huntingdonshire District Council,01/09/2016,194702,1-14285,5,288,Pengelly And Mizen,CR411042,Animal Welfare,Vets,760
http://statistics.data.gov.uk/id/local-authority/12UE,Huntingdonshire District Council,01/09/2016,194799,1-14289,5,348,Pengelly And Mizen,CR411042,Animal Welfare,Vets,760
http://statistics.data.gov.uk/id/local-authority/12UE,Huntingdonshire District Council,29/09/2016,196217,1-14375,5,596,Pengelly And Mizen,CR411042,Animal Welfare,Vets,760
http://statistics.data.gov.uk/id/local-authority/12UE,Huntingdonshire District Council,08/09/2016,194320,53063,5,296.28,Landmark Trading Ltd,CR411433,Arboricultural Team,Equipment,500
http://statistics.data.gov.uk/id/local-authority/12UE,Huntingdonshire District Council,29/09/2016,195738,2016/069,5,695.04,Primesight  Ltd,CR132710,Bus Shelters,Building Cleaning,440
http://statistics.data.gov.uk/id/local-authority/12UE,Huntingdonshire District Council,09/09/2016,194225,JBC/28326/5106/,5,"2,822.18",J Breheny Contractors Ltd,CR000314,Bus Shelters,Sitework,359
http://statistics.data.gov.uk/id/local-authority/12UE,Huntingdonshire District Council,01/09/2016,195170,57106,5,"1,174.99",Beebys Limited,CR415822,Bus Stations,Building Cleaning,440
http://statistics.data.gov.uk/id/local-authority/12UE,Huntingdonshire District Council,09/09/2016,194226,JBC/28330/5106/,5,"3,046.80",J Breheny Contractors Ltd,CR000314,Bus Stations,Sitework,359
http://statistics.data.gov.uk/id/local-authority/12UE,Huntingdonshire District Council,22/09/2016,196455,16258,5,510,Bigprinting,CR416383,Business & Enterprise Support,Equipment Maintenance,511
http://statistics.data.gov.uk/id/local-authority/12UE,Huntingdonshire District Council,22/09/2016,196335,4377,5,396,Hammond Interiors Ltd,CR423537,Call Centre,Equipment,500
http://statistics.data.gov.uk/id/local-authority/12UE,Huntingdonshire District Council,01/09/2016,191366,IN16PS16002303,5,-89.39,Whistl Uk Ltd,CR479965,Call Centre,Postage,231
http://statistics.data.gov.uk/id/local-authority/12UE,Huntingdonshire District Council,22/09/2016,196363,PO25148,5,89.39,Whistl Uk Ltd,CR479965,Call Centre,Postage,231
http://statistics.data.gov.uk/id/local-authority/12UE,Huntingdonshire District Council,01/09/2016,194776,3013090,5,276,Insight Direct Uk Ltd,CR000242,Call Centre,Software,206
http://statistics.data.gov.uk/id/local-authority/12UE,Huntingdonshire District Council,22/09/2016,195552,4246,5,547.2,Access Hire And Hydraulics,CR422526,Cctv Shared Service,Equipment Maintenance,511
http://statistics.data.gov.uk/id/local-authority/12UE,Huntingdonshire District Council,29/09/2016,195488,54119,5,822,Melsecure International,CR422888,Cctv Shared Service,Equipment Maintenance,511
http://statistics.data.gov.uk/id/local-authority/12UE,Huntingdonshire District Council,29/09/2016,196612,INV1694957,5,259.69,Interaction Recruitment Plc,CR007892,Cctv Shared Service,Hired Staff,100
http://statistics.data.gov.uk/id/local-authority/12UE,Huntingdonshire District Council,15/09/2016,194780,30694,5,"1,233.88",Storacall Voice Systems,CR422592,Cctv Shared Service,Transmission Lines Rental,767
http://statistics.data.gov.uk/id/local-authority/12UE,Huntingdonshire District Council,29/09/2016,195496,8775,5,"18,720.00",Solace In Business,CR416525,Chief Executive & Comt,Consultants,711
http://statistics.data.gov.uk/id/local-authority/12UE,Huntingdonshire District Council,01/09/2016,195071,16012887,5,"67,277.35",Cambridgeshire County Council,CR006678,Chief Executive & Comt,Pension Early Retirements,151
http://statistics.data.gov.uk/id/local-authority/12UE,Huntingdonshire District Council,01/09/2016,193919,9190421,6,"1,547.40",East Of England Lga,CR422620,Chief Executive & Comt,Training,130
http://statistics.data.gov.uk/id/local-authority/12UE,Huntingdonshire District Council,01/09/2016,195145,C-0002368450,5,"6,427.00",Computershare Vouchers Ltd,CR412205,Child Care Vouchers - Payroll,Deductions Paid To Third Party,26
http://statistics.data.gov.uk/id/local-authority/12UE,Huntingdonshire District Council,29/09/2016,196777,C-0002385358,5,"6,314.00",Computershare Vouchers Ltd,CR412205,Child Care Vouchers - Payroll,Deductions Paid To Third Party,26
http://statistics.data.gov.uk/id/local-authority/12UE,Huntingdonshire District Council,08/09/2016,601724,CRCC0116,4,"3,450.00",REDACTED PERSONAL DATA,CR423957,Community Safety,Contribution (Paid Out),810
http://statistics.data.gov.uk/id/local-authority/12UE,Huntingdonshire District Council,15/09/2016,195910,Aug-15,5,532.45,Arc Resolutions Ltd,CR422669,Community Safety,Legal Fees,729
http://statistics.data.gov.uk/id/local-authority/12UE,Huntingdonshire District Council,09/09/2016,195495,796,5,"2,273.50",Hact,CR455657,Concessionary Fares,Contribution (Paid Out),810
http://statistics.data.gov.uk/id/local-authority/12UE,Huntingdonshire District Council,29/09/2016,195556,B300816,5,"3,647.57",Jacobs,CR422350,Council Tax,Bailiffs,703
http://statistics.data.gov.uk/id/local-authority/12UE,Huntingdonshire District Council,01/09/2016,194231,,5,"3,345.78",Jacobs,CR422350,Council Tax,Bailiffs,703
http://statistics.data.gov.uk/id/local-authority/12UE,Huntingdonshire District Council,09/09/2016,195455,4053,5,"4,195.74",Newlyn Plc,CR409114,Council Tax,Bailiffs,703
http://statistics.data.gov.uk/id/local-authority/12UE,Huntingdonshire District Council,29/09/2016,196291,675213,5,538.8,Callcredit Ltd,CR455548,Council Tax,Enquiries,723
http://statistics.data.gov.uk/id/local-authority/12UE,Huntingdonshire District Council,08/09/2016,194683,9052739595,5,656.65,Royal Mail,CR027083,Council Tax,Postage,231
http://statistics.data.gov.uk/id/local-authority/12UE,Huntingdonshire District Council,01/09/2016,191366,IN16PS16002303,5,"-2,138.60",Whistl Uk Ltd,CR479965,Council Tax,Postage,231
http://statistics.data.gov.uk/id/local-authority/12UE,Huntingdonshire District Council,01/09/2016,191368,IN16PS16002597,5,-587.69,Whistl Uk Ltd,CR479965,Council Tax,Postage,231
http://statistics.data.gov.uk/id/local-authority/12UE,Huntingdonshire District Council,01/09/2016,194132,IN16PS16004451,5,"1,223.44",Whistl Uk Ltd,CR479965,Council Tax,Postage,231
http://statistics.data.gov.uk/id/local-authority/12UE,Huntingdonshire District Council,01/09/2016,195133,IN16PS16004725,5,567.65,Whistl Uk Ltd,CR479965,Council Tax,Postage,231
http://statistics.data.gov.uk/id/local-authority/12UE,Huntingdonshire District Council,22/09/2016,195561,IN16PS16004870,5,893.26,Whistl Uk Ltd,CR479965,Council Tax,Postage,231
http://statistics.data.gov.uk/id/local-authority/12UE,Huntingdonshire District Council,22/09/2016,196359,IN16PS16005175,5,557.63,Whistl Uk Ltd,CR479965,Council Tax,Postage,231
http://statistics.data.gov.uk/id/local-authority/12UE,Huntingdonshire District Council,22/09/2016,196358,IN16PS16005315,5,394.31,Whistl Uk Ltd,CR479965,Council Tax,Postage,231
http://statistics.data.gov.uk/id/local-authority/12UE,Huntingdonshire District Council,22/09/2016,196362,PO25147,5,587.69,Whistl Uk Ltd,CR479965,Council Tax,Postage,231
http://statistics.data.gov.uk/id/local-authority/12UE,Huntingdonshire District Council,22/09/2016,196363,PO25148,5,"2,138.60",Whistl Uk Ltd,CR479965,Council Tax,Postage,231
http://statistics.data.gov.uk/id/local-authority/12UE,Huntingdonshire District Council,29/09/2016,196420,INV552282,5,396,Ecocleen Services Limited,CR406985,Countryside,Building Cleaning,440
http://statistics.data.gov.uk/id/local-authority/12UE,Huntingdonshire District Council,29/09/2016,196208,INV552652,5,482.99,Ecocleen Services Limited,CR406985,Countryside,Building Cleaning,440
http://statistics.data.gov.uk/id/local-authority/12UE,Huntingdonshire District Council,22/09/2016,195154,22839,5,825.67,B. S. Graves Electrical Ltd,CR000363,Countryside,Building Mtce,303
http://statistics.data.gov.uk/id/local-authority/12UE,Huntingdonshire District Council,29/09/2016,196110,110,5,340.5,Environmental Energies Ltd,CR455214,Countryside,Building Mtce,303
http://statistics.data.gov.uk/id/local-authority/12UE,Huntingdonshire District Council,12/09/2016,195811,14566,5,50.22,Jade Security Services Ltd,CR422256,Countryside,Cash Collection,702
http://statistics.data.gov.uk/id/local-authority/12UE,Huntingdonshire District Council,22/09/2016,196210,704272310,5,468.4,Booker Cash And Carry,CR027611,Countryside,Catering Materials,559
http://statistics.data.gov.uk/id/local-authority/12UE,Huntingdonshire District Council,08/09/2016,195554,2102678879,5,491.9,Booker Cash And Carry,CR027611,Countryside,Catering Materials,559
http://statistics.data.gov.uk/id/local-authority/12UE,Huntingdonshire District Council,01/09/2016,194482,873481,5,399.13,King Bros,CR411339,Countryside,Catering Materials,559
http://statistics.data.gov.uk/id/local-authority/12UE,Huntingdonshire District Council,08/09/2016,194481,873852,5,530.35,King Bros,CR411339,Countryside,Catering Materials,559
http://statistics.data.gov.uk/id/local-authority/12UE,Huntingdonshire District Council,15/09/2016,195967,874786,5,445.62,King Bros,CR411339,Countryside,Catering Materials,559
http://statistics.data.gov.uk/id/local-authority/12UE,Huntingdonshire District Council,15/09/2016,196001,689396,5,440.58,Pilgrim Foodservice Ltd,CR455695,Countryside,Catering Materials,559
http://statistics.data.gov.uk/id/local-authority/12UE,Huntingdonshire District Council,15/09/2016,196002,692795,5,468.12,Pilgrim Foodservice Ltd,CR455695,Countryside,Catering Materials,559
http://statistics.data.gov.uk/id/local-authority/12UE,Huntingdonshire District Council,15/09/2016,196010,695255,5,548.5,Pilgrim Foodservice Ltd,CR455695,Countryside,Catering Materials,559
http://statistics.data.gov.uk/id/local-authority/12UE,Huntingdonshire District Council,15/09/2016,196005,698088,5,645.86,Pilgrim Foodservice Ltd,CR455695,Countryside,Catering Materials,559
http://statistics.data.gov.uk/id/local-authority/12UE,Huntingdonshire District Council,15/09/2016,196006,698089,5,645.03,Pilgrim Foodservice Ltd,CR455695,Countryside,Catering Materials,559
http://statistics.data.gov.uk/id/local-authority/12UE,Huntingdonshire District Council,15/09/2016,196008,700350,5,499.17,Pilgrim Foodservice Ltd,CR455695,Countryside,Catering Materials,559
http://statistics.data.gov.uk/id/local-authority/12UE,Huntingdonshire District Council,15/09/2016,196007,703099,5,809.84,Pilgrim Foodservice Ltd,CR455695,Countryside,Catering Materials,559
http://statistics.data.gov.uk/id/local-authority/12UE,Huntingdonshire District Council,08/09/2016,194862,71577,5,383,Snackline Direct Ltd,CR478090,Countryside,Catering Materials,559
http://statistics.data.gov.uk/id/local-authority/12UE,Huntingdonshire District Council,22/09/2016,196070,71791,5,339.12,Snackline Direct Ltd,CR478090,Countryside,Catering Materials,559
http://statistics.data.gov.uk/id/local-authority/12UE,Huntingdonshire District Council,22/09/2016,196072,673679,5,509.25,S S Motors (Fuels)  Ltd,CR400864,Countryside,Diesel,615
http://statistics.data.gov.uk/id/local-authority/12UE,Huntingdonshire District Council,22/09/2016,196422,41226290,5,"2,557.64",Swalec,CR407130,Countryside,Electricity,420
http://statistics.data.gov.uk/id/local-authority/12UE,Huntingdonshire District Council,22/09/2016,196423,941403268,5,296.17,Swalec,CR407130,Countryside,Electricity,420
http://statistics.data.gov.uk/id/local-authority/12UE,Huntingdonshire District Council,01/09/2016,194701,4110715,1,321.6,Espo,CR006566,Countryside,Equipment,500
http://statistics.data.gov.uk/id/local-authority/12UE,Huntingdonshire District Council,01/09/2016,194366,181573,5,398.19,Arthur Ibbett Ltd,CR000430,Countryside,Equipment Maintenance,511
http://statistics.data.gov.uk/id/local-authority/12UE,Huntingdonshire District Council,22/09/2016,196210,704272310,5,35.91,Booker Cash And Carry,CR027611,Countryside,Materials,550
http://statistics.data.gov.uk/id/local-authority/12UE,Huntingdonshire District Council,08/09/2016,195554,2102678879,5,17.99,Booker Cash And Carry,CR027611,Countryside,Materials,550
http://statistics.data.gov.uk/id/local-authority/12UE,Huntingdonshire District Council,29/09/2016,196228,3200152748,5,94.61,Shell Uk Ltd,CR028192,Countryside,Petrol,614
http://statistics.data.gov.uk/id/local-authority/12UE,Huntingdonshire District Council,29/09/2016,196230,3200165980,5,59.47,Shell Uk Ltd,CR028192,Countryside,Petrol,614
http://statistics.data.gov.uk/id/local-authority/12UE,Huntingdonshire District Council,29/09/2016,196230,3200165980,5,199.3,Shell Uk Ltd,CR028192,Countryside,Petrol,614
http://statistics.data.gov.uk/id/local-authority/12UE,Huntingdonshire District Council,01/09/2016,194201,7094,5,"3,360.00",Lattenbury Services,CR406847,Countryside,Sitework,359
http://statistics.data.gov.uk/id/local-authority/12UE,Huntingdonshire District Council,29/09/2016,196254,3700,5,"2,685.83",White Commercial Surveyors Ltd,CR412242,Customer Service Centres,Rent,410
http://statistics.data.gov.uk/id/local-authority/12UE,Huntingdonshire District Council,12/09/2016,194680,6740547240,5,569.95,Lyreco Uk Ltd,CR400700,Customer Service Centres,Stationery,225
http://statistics.data.gov.uk/id/local-authority/12UE,Huntingdonshire District Council,12/09/2016,195806,1111367025,5,"23,802.44",Deloitte Llp,CR400573,Dc Application Processing,Consultants,711
http://statistics.data.gov.uk/id/local-authority/12UE,Huntingdonshire District Council,01/09/2016,193999,7284/16/451/PA,5,720,Reading Agricultural Consultants,CR404991,Dc Application Processing,Consultants,711
http://statistics.data.gov.uk/id/local-authority/12UE,Huntingdonshire District Council,08/09/2016,194237,7335/16/491/PA,5,720,Reading Agricultural Consultants,CR404991,Dc Application Processing,Consultants,711
http://statistics.data.gov.uk/id/local-authority/12UE,Huntingdonshire District Council,09/09/2016,195618,46032,5,365.98,Plot It,CR455069,Dc Application Processing,Materials,550
http://statistics.data.gov.uk/id/local-authority/12UE,Huntingdonshire District Council,09/09/2016,195618,46032,5,129.51,Plot It,CR455069,Dc Application Processing,Paper,562
http://statistics.data.gov.uk/id/local-authority/12UE,Huntingdonshire District Council,29/09/2016,196381,358253,5,644.4,Surrey Envelopes,CR482428,Document Centre,Envelopes,224
http://statistics.data.gov.uk/id/local-authority/12UE,Huntingdonshire District Council,29/09/2016,196366,12450,5,"1,101.60",West Country Group,CR400581,Document Centre,Envelopes,224
http://statistics.data.gov.uk/id/local-authority/12UE,Huntingdonshire District Council,22/09/2016,196461,16362,5,306,Bigprinting,CR416383,Document Centre,Equipment Maintenance,511
http://statistics.data.gov.uk/id/local-authority/12UE,Huntingdonshire District Council,12/09/2016,194790,1126152404,5,"1,688.69",Konica Minolta,CR478866,Document Centre,Equipment Maintenance,511
http://statistics.data.gov.uk/id/local-authority/12UE,Huntingdonshire District Council,12/09/2016,195129,1126164692,5,"2,378.26",Konica Minolta,CR478866,Document Centre,Equipment Maintenance,511
http://statistics.data.gov.uk/id/local-authority/12UE,Huntingdonshire District Council,01/09/2016,195060,50021177,5,"4,450.37",Moore Paragon Uk Limited Pss,CR030863,Document Centre,Equipment Maintenance,511
http://statistics.data.gov.uk/id/local-authority/12UE,Huntingdonshire District Council,29/09/2016,195570,24023,5,309.6,Street Process Colour Ltd,CR422705,Document Centre,Materials,550
http://statistics.data.gov.uk/id/local-authority/12UE,Huntingdonshire District Council,08/09/2016,194470,6073313,5,30.72,Antalis Ltd,CR479468,Document Centre,Paper,562
http://statistics.data.gov.uk/id/local-authority/12UE,Huntingdonshire District Council,08/09/2016,194470,6073313,5,298.2,Antalis Ltd,CR479468,Document Centre,Paper,562
http://statistics.data.gov.uk/id/local-authority/12UE,Huntingdonshire District Council,12/09/2016,194855,6105528,5,584.4,Antalis Ltd,CR479468,Document Centre,Paper,562
http://statistics.data.gov.uk/id/local-authority/12UE,Huntingdonshire District Council,12/09/2016,194855,6105528,5,109.68,Antalis Ltd,CR479468,Document Centre,Paper,562
http://statistics.data.gov.uk/id/local-authority/12UE,Huntingdonshire District Council,12/09/2016,194855,6105528,5,202.68,Antalis Ltd,CR479468,Document Centre,Paper,562
http://statistics.data.gov.uk/id/local-authority/12UE,Huntingdonshire District Council,29/09/2016,195575,6131315,5,298.2,Antalis Ltd,CR479468,Document Centre,Paper,562
http://statistics.data.gov.uk/id/local-authority/12UE,Huntingdonshire District Council,08/09/2016,194683,9052739595,5,869.21,Royal Mail,CR027083,Document Centre,Postage,231
http://statistics.data.gov.uk/id/local-authority/12UE,Huntingdonshire District Council,29/09/2016,196361,9052870135,5,"1,106.17",Royal Mail,CR027083,Document Centre,Postage,231
http://statistics.data.gov.uk/id/local-authority/12UE,Huntingdonshire District Council,01/09/2016,191366,IN16PS16002303,5,"-1,285.24",Whistl Uk Ltd,CR479965,Document Centre,Postage,231
http://statistics.data.gov.uk/id/local-authority/12UE,Huntingdonshire District Council,01/09/2016,191368,IN16PS16002597,5,"-1,167.08",Whistl Uk Ltd,CR479965,Document Centre,Postage,231
http://statistics.data.gov.uk/id/local-authority/12UE,Huntingdonshire District Council,01/09/2016,194132,IN16PS16004451,5,"1,124.03",Whistl Uk Ltd,CR479965,Document Centre,Postage,231
http://statistics.data.gov.uk/id/local-authority/12UE,Huntingdonshire District Council,01/09/2016,195133,IN16PS16004725,5,"1,004.58",Whistl Uk Ltd,CR479965,Document Centre,Postage,231
http://statistics.data.gov.uk/id/local-authority/12UE,Huntingdonshire District Council,01/09/2016,195131,IN16PS16004726,5,"1,248.93",Whistl Uk Ltd,CR479965,Document Centre,Postage,231
http://statistics.data.gov.uk/id/local-authority/12UE,Huntingdonshire District Council,22/09/2016,195561,IN16PS16004870,5,343.95,Whistl Uk Ltd,CR479965,Document Centre,Postage,231
http://statistics.data.gov.uk/id/local-authority/12UE,Huntingdonshire District Council,22/09/2016,196359,IN16PS16005175,5,771.24,Whistl Uk Ltd,CR479965,Document Centre,Postage,231
http://statistics.data.gov.uk/id/local-authority/12UE,Huntingdonshire District Council,22/09/2016,196358,IN16PS16005315,5,"1,223.02",Whistl Uk Ltd,CR479965,Document Centre,Postage,231
http://statistics.data.gov.uk/id/local-authority/12UE,Huntingdonshire District Council,22/09/2016,196362,PO25147,5,"1,167.08",Whistl Uk Ltd,CR479965,Document Centre,Postage,231
http://statistics.data.gov.uk/id/local-authority/12UE,Huntingdonshire District Council,22/09/2016,196363,PO25148,5,"1,285.24",Whistl Uk Ltd,CR479965,Document Centre,Postage,231
http://statistics.data.gov.uk/id/local-authority/12UE,Huntingdonshire District Council,29/09/2016,196171,2077,5,"2,759.89",Change Agents Uk Trading Ltd,CR477664,Domestic Refuse,Hired Staff,100
http://statistics.data.gov.uk/id/local-authority/12UE,Huntingdonshire District Council,01/09/2016,194865,IN0536122,5,"6,933.50",Staffline Group,CR416827,Domestic Refuse,Hired Staff,100
http://statistics.data.gov.uk/id/local-authority/12UE,Huntingdonshire District Council,01/09/2016,194863,IN0536123,5,"2,193.00",Staffline Group,CR416827,Domestic Refuse,Hired Staff,100
http://statistics.data.gov.uk/id/local-authority/12UE,Huntingdonshire District Council,22/09/2016,196088,IN0537594,5,"7,279.72",Staffline Group,CR416827,Domestic Refuse,Hired Staff,100
http://statistics.data.gov.uk/id/local-authority/12UE,Huntingdonshire District Council,22/09/2016,196084,IN0537595,5,"3,755.44",Staffline Group,CR416827,Domestic Refuse,Hired Staff,100
http://statistics.data.gov.uk/id/local-authority/12UE,Huntingdonshire District Council,29/09/2016,196673,IN0539540,5,"4,900.26",Staffline Group,CR416827,Domestic Refuse,Hired Staff,100
http://statistics.data.gov.uk/id/local-authority/12UE,Huntingdonshire District Council,29/09/2016,196666,IN0539541,5,"2,826.76",Staffline Group,CR416827,Domestic Refuse,Hired Staff,100
http://statistics.data.gov.uk/id/local-authority/12UE,Huntingdonshire District Council,29/09/2016,196674,IN0540785,5,"4,876.74",Staffline Group,CR416827,Domestic Refuse,Hired Staff,100
http://statistics.data.gov.uk/id/local-authority/12UE,Huntingdonshire District Council,29/09/2016,196667,IN0540786,5,"3,673.24",Staffline Group,CR416827,Domestic Refuse,Hired Staff,100
http://statistics.data.gov.uk/id/local-authority/12UE,Huntingdonshire District Council,29/09/2016,196675,IN0542394,5,"4,595.33",Staffline Group,CR416827,Domestic Refuse,Hired Staff,100
http://statistics.data.gov.uk/id/local-authority/12UE,Huntingdonshire District Council,29/09/2016,196669,IN0542395,5,"3,937.24",Staffline Group,CR416827,Domestic Refuse,Hired Staff,100
http://statistics.data.gov.uk/id/local-authority/12UE,Huntingdonshire District Council,22/09/2016,194717,I3799,5,750,Zurich Municipal,CR003638,Domestic Refuse,Insurance Excess,797
http://statistics.data.gov.uk/id/local-authority/12UE,Huntingdonshire District Council,01/09/2016,195131,IN16PS16004726,5,157.88,Whistl Uk Ltd,CR479965,Domestic Refuse,Postage,231
http://statistics.data.gov.uk/id/local-authority/12UE,Huntingdonshire District Council,29/09/2016,196700,SIN0617171,5,335,Howsafe Ltd,CR000409,Domestic Refuse,Protective Clothing & Uniforms,163
http://statistics.data.gov.uk/id/local-authority/12UE,Huntingdonshire District Council,22/09/2016,196059,361182,5,"1,080.96",Smi Group,CR423139,Domestic Refuse,Protective Clothing & Uniforms,163
http://statistics.data.gov.uk/id/local-authority/12UE,Huntingdonshire District Council,22/09/2016,196065,362504,5,"1,857.36",Smi Group,CR423139,Domestic Refuse,Protective Clothing & Uniforms,163
http://statistics.data.gov.uk/id/local-authority/12UE,Huntingdonshire District Council,22/09/2016,196329,365592,5,714.6,Smi Group,CR423139,Domestic Refuse,Protective Clothing & Uniforms,163
http://statistics.data.gov.uk/id/local-authority/12UE,Huntingdonshire District Council,22/09/2016,196339,365648,5,619.2,Smi Group,CR423139,Domestic Refuse,Protective Clothing & Uniforms,163
http://statistics.data.gov.uk/id/local-authority/12UE,Huntingdonshire District Council,22/09/2016,196106,SINV-099567,5,"5,594.53",Gelpack Excelsior Limited,CR002966,Domestic Refuse,Refuse Sacks,552
http://statistics.data.gov.uk/id/local-authority/12UE,Huntingdonshire District Council,29/09/2016,196315,92833,5,"3,475.46",Bandvulc Truck Tyres,CR406810,Domestic Refuse,Tyres,630
http://statistics.data.gov.uk/id/local-authority/12UE,Huntingdonshire District Council,22/09/2016,196169,100080,5,276,Huntingdon Plant Hire,CR000425,Domestic Refuse,Vehicle Cleaning,620
http://statistics.data.gov.uk/id/local-authority/12UE,Huntingdonshire District Council,22/09/2016,196168,100179,5,276,Huntingdon Plant Hire,CR000425,Domestic Refuse,Vehicle Cleaning,620
http://statistics.data.gov.uk/id/local-authority/12UE,Huntingdonshire District Council,22/09/2016,196127,1608/48557,5,408,Gullivers Truck Hire Ltd,CR477663,Domestic Refuse,Vehicle Hire,607
http://statistics.data.gov.uk/id/local-authority/12UE,Huntingdonshire District Council,22/09/2016,196130,1608/49625,5,408,Gullivers Truck Hire Ltd,CR477663,Domestic Refuse,Vehicle Hire,607
http://statistics.data.gov.uk/id/local-authority/12UE,Huntingdonshire District Council,22/09/2016,196129,1608/51429,5,408,Gullivers Truck Hire Ltd,CR477663,Domestic Refuse,Vehicle Hire,607
http://statistics.data.gov.uk/id/local-authority/12UE,Huntingdonshire District Council,29/09/2016,196046,10732349,5,"1,776.30",Shb Hire Ltd,CR416566,Domestic Refuse,Vehicle Hire,607
http://statistics.data.gov.uk/id/local-authority/12UE,Huntingdonshire District Council,01/09/2016,194349,467542I,5,247.5,A C Commercials,CR000141,Domestic Refuse,Vehicle Oil & Lubricants,626
http://statistics.data.gov.uk/id/local-authority/12UE,Huntingdonshire District Council,08/09/2016,194890,189697,5,294,Barton Petroleum,CR409205,Domestic Refuse,Vehicle Oil & Lubricants,626
http://statistics.data.gov.uk/id/local-authority/12UE,Huntingdonshire District Council,22/09/2016,196161,DE10975890,5,627.96,Dennis Eagle Ltd,CR000200,Domestic Refuse,Vehicle Oil & Lubricants,626
http://statistics.data.gov.uk/id/local-authority/12UE,Huntingdonshire District Council,09/09/2016,194902,56163,5,385.06,Interflon,CR482679,Domestic Refuse,Vehicle Oil & Lubricants,626
http://statistics.data.gov.uk/id/local-authority/12UE,Huntingdonshire District Council,09/09/2016,194902,56163,5,9.6,Interflon,CR482679,Domestic Refuse,Vehicle Oil & Lubricants,626
http://statistics.data.gov.uk/id/local-authority/12UE,Huntingdonshire District Council,22/09/2016,196173,4/26361,5,470.4,D H M Truck & Tachograph Centr,CR032254,Domestic Refuse,Vehicle Parts & Fittings,625
http://statistics.data.gov.uk/id/local-authority/12UE,Huntingdonshire District Council,22/09/2016,194899,DE10974936,5,163.32,Dennis Eagle Ltd,CR000200,Domestic Refuse,Vehicle Parts & Fittings,625
http://statistics.data.gov.uk/id/local-authority/12UE,Huntingdonshire District Council,22/09/2016,194899,DE10974936,5,88.58,Dennis Eagle Ltd,CR000200,Domestic Refuse,Vehicle Parts & Fittings,625
http://statistics.data.gov.uk/id/local-authority/12UE,Huntingdonshire District Council,22/09/2016,196160,DE10976245,5,533.75,Dennis Eagle Ltd,CR000200,Domestic Refuse,Vehicle Parts & Fittings,625
http://statistics.data.gov.uk/id/local-authority/12UE,Huntingdonshire District Council,22/09/2016,195541,DE10976580,5,487.24,Dennis Eagle Ltd,CR000200,Domestic Refuse,Vehicle Parts & Fittings,625
http://statistics.data.gov.uk/id/local-authority/12UE,Huntingdonshire District Council,22/09/2016,195540,DE10976920,5,405.12,Dennis Eagle Ltd,CR000200,Domestic Refuse,Vehicle Parts & Fittings,625
http://statistics.data.gov.uk/id/local-authority/12UE,Huntingdonshire District Council,29/09/2016,196163,DE10978594,5,578.03,Dennis Eagle Ltd,CR000200,Domestic Refuse,Vehicle Parts & Fittings,625
http://statistics.data.gov.uk/id/local-authority/12UE,Huntingdonshire District Council,29/09/2016,195983,25205,5,"2,149.24",M & N Vehicle Services,CR480661,Domestic Refuse,Vehicle Parts & Fittings,625
http://statistics.data.gov.uk/id/local-authority/12UE,Huntingdonshire District Council,01/09/2016,194323,101286,5,754.8,Red Forge Ltd,CR405690,Domestic Refuse,Vehicle Parts & Fittings,625
http://statistics.data.gov.uk/id/local-authority/12UE,Huntingdonshire District Council,29/09/2016,195652,101399,5,"1,701.50",Red Forge Ltd,CR405690,Domestic Refuse,Vehicle Parts & Fittings,625
http://statistics.data.gov.uk/id/local-authority/12UE,Huntingdonshire District Council,22/09/2016,196041,137278,5,348,Silver Shield Windscreens,CR024745,Domestic Refuse,Vehicle Parts & Fittings,625
http://statistics.data.gov.uk/id/local-authority/12UE,Huntingdonshire District Council,22/09/2016,195965,139134,5,348,Silver Shield Windscreens,CR024745,Domestic Refuse,Vehicle Parts & Fittings,625
http://statistics.data.gov.uk/id/local-authority/12UE,Huntingdonshire District Council,22/09/2016,196232,96331026,5,414.2,Terberg Matec Uk Ltd,CR402183,Domestic Refuse,Vehicle Parts & Fittings,625
http://statistics.data.gov.uk/id/local-authority/12UE,Huntingdonshire District Council,09/09/2016,194459,30215,5,"1,349.38",Hi-Spec Facilities Services Plc,CR423413,E F H And Depots,Building Cleaning,440
http://statistics.data.gov.uk/id/local-authority/12UE,Huntingdonshire District Council,09/09/2016,194458,30448,5,"1,349.38",Hi-Spec Facilities Services Plc,CR423413,E F H And Depots,Building Cleaning,440
http://statistics.data.gov.uk/id/local-authority/12UE,Huntingdonshire District Council,01/09/2016,195172,227,5,700,Dms Home Improvements & Electrical,CR479202,E F H And Depots,Building Mtce,303
http://statistics.data.gov.uk/id/local-authority/12UE,Huntingdonshire District Council,22/09/2016,195157,CN15064,5,"-1,766.40",First In Service Ltd,CR422285,E F H And Depots,Building Mtce,303
http://statistics.data.gov.uk/id/local-authority/12UE,Huntingdonshire District Council,29/09/2016,196345,28205,5,502.08,Hygiene Solutions,CR477443,E F H And Depots,Building Mtce,303
http://statistics.data.gov.uk/id/local-authority/12UE,Huntingdonshire District Council,09/09/2016,194464,CD200008577,5,52.45,Integrated Water Services Ltd,CR452140,E F H And Depots,Building Mtce,303
http://statistics.data.gov.uk/id/local-authority/12UE,Huntingdonshire District Council,09/09/2016,195539,CD200015983,5,52.45,Integrated Water Services Ltd,CR452140,E F H And Depots,Building Mtce,303
http://statistics.data.gov.uk/id/local-authority/12UE,Huntingdonshire District Council,22/09/2016,196441,7074,5,"2,820.00",Lattenbury Services,CR406847,E F H And Depots,Building Mtce,303
http://statistics.data.gov.uk/id/local-authority/12UE,Huntingdonshire District Council,22/09/2016,196064,56612,5,282.65,Maskearaid Ind Supplies,CR033423,E F H And Depots,Cleaning Materials,443
http://statistics.data.gov.uk/id/local-authority/12UE,Huntingdonshire District Council,15/09/2016,195523,65924,5,"2,962.47",Haven Power Ltd,CR455940,E F H And Depots,Electricity,420
http://statistics.data.gov.uk/id/local-authority/12UE,Huntingdonshire District Council,29/09/2016,195946,162,5,"2,400.00",Lcs Energy Ltd,CR423483,E F H And Depots,Plant & Equipment Maintenance,380
http://statistics.data.gov.uk/id/local-authority/12UE,Huntingdonshire District Council,29/09/2016,195947,163,5,"2,004.00",Lcs Energy Ltd,CR423483,E F H And Depots,Plant & Equipment Maintenance,380
http://statistics.data.gov.uk/id/local-authority/12UE,Huntingdonshire District Council,15/09/2016,196017,2611,5,342,Universal Safety Systems Ltd,CR478208,E F H And Depots,Plant & Equipment Maintenance,380
http://statistics.data.gov.uk/id/local-authority/12UE,Huntingdonshire District Council,29/09/2016,196767,130588239,5,685.02,Anglian Water,CR000071,E F H And Depots,Water & Sewerage,432
http://statistics.data.gov.uk/id/local-authority/12UE,Huntingdonshire District Council,01/09/2016,191368,IN16PS16002597,5,-27.15,Whistl Uk Ltd,CR479965,Elections,Postage,231
http://statistics.data.gov.uk/id/local-authority/12UE,Huntingdonshire District Council,22/09/2016,196362,PO25147,5,27.14,Whistl Uk Ltd,CR479965,Elections,Postage,231
http://statistics.data.gov.uk/id/local-authority/12UE,Huntingdonshire District Council,08/09/2016,194683,9052739595,5,163.4,Royal Mail,CR027083,Electoral Registration,Postage,231
http://statistics.data.gov.uk/id/local-authority/12UE,Huntingdonshire District Council,12/09/2016,195130,9052787863,5,"7,015.87",Royal Mail,CR027083,Electoral Registration,Postage,231
http://statistics.data.gov.uk/id/local-authority/12UE,Huntingdonshire District Council,22/09/2016,195564,9052837678,5,"1,689.44",Royal Mail,CR027083,Electoral Registration,Postage,231
http://statistics.data.gov.uk/id/local-authority/12UE,Huntingdonshire District Council,29/09/2016,196361,9052870135,5,814.74,Royal Mail,CR027083,Electoral Registration,Postage,231
http://statistics.data.gov.uk/id/local-authority/12UE,Huntingdonshire District Council,01/09/2016,191366,IN16PS16002303,5,-417.69,Whistl Uk Ltd,CR479965,Electoral Registration,Postage,231
http://statistics.data.gov.uk/id/local-authority/12UE,Huntingdonshire District Council,01/09/2016,191368,IN16PS16002597,5,-256.02,Whistl Uk Ltd,CR479965,Electoral Registration,Postage,231
http://statistics.data.gov.uk/id/local-authority/12UE,Huntingdonshire District Council,01/09/2016,194132,IN16PS16004451,5,80.6,Whistl Uk Ltd,CR479965,Electoral Registration,Postage,231
http://statistics.data.gov.uk/id/local-authority/12UE,Huntingdonshire District Council,01/09/2016,195133,IN16PS16004725,5,58.05,Whistl Uk Ltd,CR479965,Electoral Registration,Postage,231
http://statistics.data.gov.uk/id/local-authority/12UE,Huntingdonshire District Council,01/09/2016,195131,IN16PS16004726,5,426.05,Whistl Uk Ltd,CR479965,Electoral Registration,Postage,231
http://statistics.data.gov.uk/id/local-authority/12UE,Huntingdonshire District Council,22/09/2016,196359,IN16PS16005175,5,550.95,Whistl Uk Ltd,CR479965,Electoral Registration,Postage,231
http://statistics.data.gov.uk/id/local-authority/12UE,Huntingdonshire District Council,22/09/2016,196358,IN16PS16005315,5,537.57,Whistl Uk Ltd,CR479965,Electoral Registration,Postage,231
http://statistics.data.gov.uk/id/local-authority/12UE,Huntingdonshire District Council,22/09/2016,196362,PO25147,5,256.03,Whistl Uk Ltd,CR479965,Electoral Registration,Postage,231
http://statistics.data.gov.uk/id/local-authority/12UE,Huntingdonshire District Council,22/09/2016,196363,PO25148,5,417.69,Whistl Uk Ltd,CR479965,Electoral Registration,Postage,231
http://statistics.data.gov.uk/id/local-authority/12UE,Huntingdonshire District Council,01/09/2016,194387,2986,5,"33,571.56",Sci Print Limited,CR416581,Electoral Registration,Printing (External),220
http://statistics.data.gov.uk/id/local-authority/12UE,Huntingdonshire District Council,29/09/2016,195739,7344,5,588,Air Monitors Ltd,CR480691,Environmental Health M Us,Equipment,500
http://statistics.data.gov.uk/id/local-authority/12UE,Huntingdonshire District Council,22/09/2016,196335,4377,5,72,Hammond Interiors Ltd,CR423537,Environmental Health M Us,Equipment,500
http://statistics.data.gov.uk/id/local-authority/12UE,Huntingdonshire District Council,09/09/2016,194223,JBC/28328/5106/,5,741.6,J Breheny Contractors Ltd,CR000314,Environmental Imps Mgt,Sitework,359
http://statistics.data.gov.uk/id/local-authority/12UE,Huntingdonshire District Council,09/09/2016,194222,JBC/28329/5106/,5,706.37,J Breheny Contractors Ltd,CR000314,Environmental Imps Mgt,Sitework,359
http://statistics.data.gov.uk/id/local-authority/12UE,Huntingdonshire District Council,09/09/2016,195489,2895,5,378,K & M Lighting Services Ltd,CR455166,Environmental Imps Mgt,Sitework,359
http://statistics.data.gov.uk/id/local-authority/12UE,Huntingdonshire District Council,29/09/2016,196227,3200152724,5,211.18,Shell Uk Ltd,CR028192,Environmental Management,Licences,730
http://statistics.data.gov.uk/id/local-authority/12UE,Huntingdonshire District Council,29/09/2016,196228,3200152748,5,283.2,Shell Uk Ltd,CR028192,Environmental Management,Licences,730
http://statistics.data.gov.uk/id/local-authority/12UE,Huntingdonshire District Council,29/09/2016,196229,3200165958,5,211.2,Shell Uk Ltd,CR028192,Environmental Management,Licences,730
http://statistics.data.gov.uk/id/local-authority/12UE,Huntingdonshire District Council,29/09/2016,196230,3200165980,5,283.2,Shell Uk Ltd,CR028192,Environmental Management,Licences,730
http://statistics.data.gov.uk/id/local-authority/12UE,Huntingdonshire District Council,29/09/2016,196227,3200152724,5,75.95,Shell Uk Ltd,CR028192,Environmental Management,Petrol,614
http://statistics.data.gov.uk/id/local-authority/12UE,Huntingdonshire District Council,29/09/2016,196269,INV08459,5,282.21,Uvenco,CR482479,Environmental Management,Service Charges,412
http://statistics.data.gov.uk/id/local-authority/12UE,Huntingdonshire District Council,29/09/2016,195899,90213168,5,641.4,Freeths  Llp,CR480787,Estates Properties Capital,Legal Fees,729
http://statistics.data.gov.uk/id/local-authority/12UE,Huntingdonshire District Council,29/09/2016,195587,839030,5,"1,080.00",East Cambridgeshire District Council,CR413319,Financial Services Mus,Consultants,711
http://statistics.data.gov.uk/id/local-authority/12UE,Huntingdonshire District Council,29/09/2016,196291,675213,5,10.8,Callcredit Ltd,CR455548,Financial Services Mus,Enquiries,723
http://statistics.data.gov.uk/id/local-authority/12UE,Huntingdonshire District Council,09/09/2016,195583,BC00217,5,"8,190.00",Barry Cornelius Associates,CR422523,Financial Services Mus,Hired Staff,100
http://statistics.data.gov.uk/id/local-authority/12UE,Huntingdonshire District Council,09/09/2016,195583,BC00217,5,"6,480.00",Barry Cornelius Associates,CR422523,Financial Services Mus,Hired Staff,100
http://statistics.data.gov.uk/id/local-authority/12UE,Huntingdonshire District Council,12/09/2016,194788,12667,5,357.36,Lightning Recruitment,CR028184,Financial Services Mus,Hired Staff,100
http://statistics.data.gov.uk/id/local-authority/12UE,Huntingdonshire District Council,22/09/2016,195115,12692,5,321.62,Lightning Recruitment,CR028184,Financial Services Mus,Hired Staff,100
http://statistics.data.gov.uk/id/local-authority/12UE,Huntingdonshire District Council,01/09/2016,194831,33724,5,"1,205.90",Meyer Scott Recruitment Limited,CR422369,Financial Services Mus,Hired Staff,100
http://statistics.data.gov.uk/id/local-authority/12UE,Huntingdonshire District Council,01/09/2016,194830,33756,5,"1,205.90",Meyer Scott Recruitment Limited,CR422369,Financial Services Mus,Hired Staff,100
http://statistics.data.gov.uk/id/local-authority/12UE,Huntingdonshire District Council,01/09/2016,195152,33780,5,765.91,Meyer Scott Recruitment Limited,CR422369,Financial Services Mus,Hired Staff,100
http://statistics.data.gov.uk/id/local-authority/12UE,Huntingdonshire District Council,29/09/2016,195585,33803,5,602.95,Meyer Scott Recruitment Limited,CR422369,Financial Services Mus,Hired Staff,100
http://statistics.data.gov.uk/id/local-authority/12UE,Huntingdonshire District Council,29/09/2016,196354,33833,5,737.4,Meyer Scott Recruitment Limited,CR422369,Financial Services Mus,Hired Staff,100
http://statistics.data.gov.uk/id/local-authority/12UE,Huntingdonshire District Council,12/09/2016,195112,10692683,5,"3,200.02",Cambridgeshire County Council,CR017440,Financial Services Mus,Software,206
http://statistics.data.gov.uk/id/local-authority/12UE,Huntingdonshire District Council,29/09/2016,196228,3200152748,5,40.31,Shell Uk Ltd,CR028192,Fleet Management,Diesel,615
http://statistics.data.gov.uk/id/local-authority/12UE,Huntingdonshire District Council,29/09/2016,196230,3200165980,5,40.58,Shell Uk Ltd,CR028192,Fleet Management,Diesel,615
http://statistics.data.gov.uk/id/local-authority/12UE,Huntingdonshire District Council,29/09/2016,196690,300129816,5,312,Freight Transport Association,CR003104,Fleet Management,Licences,730
http://statistics.data.gov.uk/id/local-authority/12UE,Huntingdonshire District Council,22/09/2016,196158,SN2474237,5,381.6,Berendsen,CR478298,Fleet Management,Materials,550
http://statistics.data.gov.uk/id/local-authority/12UE,Huntingdonshire District Council,29/09/2016,196264,37446,5,332.74,Trinity Engineering & Component Supplies Ltd,CR455479,Fleet Management,Materials,550
http://statistics.data.gov.uk/id/local-authority/12UE,Huntingdonshire District Council,29/09/2016,196265,37447,5,452.48,Trinity Engineering & Component Supplies Ltd,CR455479,Fleet Management,Materials,550
http://statistics.data.gov.uk/id/local-authority/12UE,Huntingdonshire District Council,01/09/2016,194349,467542I,5,33,A C Commercials,CR000141,Fleet Management,Vehicle Oil & Lubricants,626
http://statistics.data.gov.uk/id/local-authority/12UE,Huntingdonshire District Council,22/09/2016,196173,4/26361,5,73.25,D H M Truck & Tachograph Centr,CR032254,Fleet Management,Vehicle Parts & Fittings,625
http://statistics.data.gov.uk/id/local-authority/12UE,Huntingdonshire District Council,22/09/2016,194899,DE10974936,5,"1,108.04",Dennis Eagle Ltd,CR000200,Fleet Management,Vehicle Parts & Fittings,625
http://statistics.data.gov.uk/id/local-authority/12UE,Huntingdonshire District Council,29/09/2016,196228,3200152748,5,276.41,Shell Uk Ltd,CR028192,Grounds Maintenance,Diesel,615
http://statistics.data.gov.uk/id/local-authority/12UE,Huntingdonshire District Council,29/09/2016,196230,3200165980,5,197.93,Shell Uk Ltd,CR028192,Grounds Maintenance,Diesel,615
http://statistics.data.gov.uk/id/local-authority/12UE,Huntingdonshire District Council,09/09/2016,194066,45348,5,298.39,Groundsman,CR422159,Grounds Maintenance,Equipment,500
http://statistics.data.gov.uk/id/local-authority/12UE,Huntingdonshire District Council,09/09/2016,195161,4000003889,5,490.5,1st Choice Recruitment,CR416849,Grounds Maintenance,Hired Staff,100
http://statistics.data.gov.uk/id/local-authority/12UE,Huntingdonshire District Council,09/09/2016,195159,4000003911,5,353.16,1st Choice Recruitment,CR416849,Grounds Maintenance,Hired Staff,100
http://statistics.data.gov.uk/id/local-authority/12UE,Huntingdonshire District Council,22/09/2016,196108,4000003934,5,294.3,1st Choice Recruitment,CR416849,Grounds Maintenance,Hired Staff,100
http://statistics.data.gov.uk/id/local-authority/12UE,Huntingdonshire District Council,29/09/2016,196740,4000003955,5,392.4,1st Choice Recruitment,CR416849,Grounds Maintenance,Hired Staff,100
http://statistics.data.gov.uk/id/local-authority/12UE,Huntingdonshire District Council,22/09/2016,194717,I3799,5,407.75,Zurich Municipal,CR003638,Grounds Maintenance,Insurance Excess,797
http://statistics.data.gov.uk/id/local-authority/12UE,Huntingdonshire District Council,29/09/2016,196227,3200152724,5,228.91,Shell Uk Ltd,CR028192,Grounds Maintenance,Petrol,614
http://statistics.data.gov.uk/id/local-authority/12UE,Huntingdonshire District Council,29/09/2016,196228,3200152748,5,75.85,Shell Uk Ltd,CR028192,Grounds Maintenance,Petrol,614
http://statistics.data.gov.uk/id/local-authority/12UE,Huntingdonshire District Council,29/09/2016,196229,3200165958,5,288.07,Shell Uk Ltd,CR028192,Grounds Maintenance,Petrol,614
http://statistics.data.gov.uk/id/local-authority/12UE,Huntingdonshire District Council,29/09/2016,196230,3200165980,5,57.95,Shell Uk Ltd,CR028192,Grounds Maintenance,Petrol,614
http://statistics.data.gov.uk/id/local-authority/12UE,Huntingdonshire District Council,22/09/2016,196330,366110,5,293.88,Smi Group,CR423139,Grounds Maintenance,Protective Clothing & Uniforms,163
http://statistics.data.gov.uk/id/local-authority/12UE,Huntingdonshire District Council,29/09/2016,196400,14690643,5,"5,032.80",Ashtead Plant Hire Company Ltd,CR477803,Grounds Maintenance,Vehicle Hire,607
http://statistics.data.gov.uk/id/local-authority/12UE,Huntingdonshire District Council,29/09/2016,196747,14741618,5,540,Ashtead Plant Hire Company Ltd,CR477803,Grounds Maintenance,Vehicle Hire,607
http://statistics.data.gov.uk/id/local-authority/12UE,Huntingdonshire District Council,01/09/2016,194349,467542I,5,379.5,A C Commercials,CR000141,Grounds Maintenance,Vehicle Oil & Lubricants,626
http://statistics.data.gov.uk/id/local-authority/12UE,Huntingdonshire District Council,01/09/2016,194351,785246,5,305.26,Ernest Doe & Sons,CR000261,Grounds Maintenance,Vehicle Parts & Fittings,625
http://statistics.data.gov.uk/id/local-authority/12UE,Huntingdonshire District Council,22/09/2016,196166,785917,5,470.07,Ernest Doe & Sons,CR000261,Grounds Maintenance,Vehicle Parts & Fittings,625
http://statistics.data.gov.uk/id/local-authority/12UE,Huntingdonshire District Council,29/09/2016,195653,84786,5,300,Frank Ratcliffe & Son,CR007546,Grounds Maintenance,Vehicle Parts & Fittings,625
http://statistics.data.gov.uk/id/local-authority/12UE,Huntingdonshire District Council,29/09/2016,195652,101399,5,425.38,Red Forge Ltd,CR405690,Grounds Maintenance,Vehicle Parts & Fittings,625
http://statistics.data.gov.uk/id/local-authority/12UE,Huntingdonshire District Council,15/09/2016,195926,191248,5,349.68,Cambridge City Council,CR017896,Homelessness Management,Bed & Breakfast Payment,818
http://statistics.data.gov.uk/id/local-authority/12UE,Huntingdonshire District Council,15/09/2016,195922,31/2016,5,"1,190.00",The Station Hotel,CR453752,Homelessness Management,Bed & Breakfast Payment,818
http://statistics.data.gov.uk/id/local-authority/12UE,Huntingdonshire District Council,15/09/2016,195920,32/2016,5,"1,445.00",The Station Hotel,CR453752,Homelessness Management,Bed & Breakfast Payment,818
http://statistics.data.gov.uk/id/local-authority/12UE,Huntingdonshire District Council,15/09/2016,195919,33/2016,5,"1,190.00",The Station Hotel,CR453752,Homelessness Management,Bed & Breakfast Payment,818
http://statistics.data.gov.uk/id/local-authority/12UE,Huntingdonshire District Council,15/09/2016,195921,34/2016,5,"1,190.00",The Station Hotel,CR453752,Homelessness Management,Bed & Breakfast Payment,818
http://statistics.data.gov.uk/id/local-authority/12UE,Huntingdonshire District Council,01/09/2016,195147,EC036,5,"3,240.00",Ukos Projects Ltd,CR423164,Homelessness Management,Bed & Breakfast Payment,818
http://statistics.data.gov.uk/id/local-authority/12UE,Huntingdonshire District Council,09/09/2016,195565,EC036,5,"3,000.00",Ukos Projects Ltd,CR423164,Homelessness Management,Bed & Breakfast Payment,818
http://statistics.data.gov.uk/id/local-authority/12UE,Huntingdonshire District Council,15/09/2016,195927,EC038,5,"2,040.00",Ukos Projects Ltd,CR423164,Homelessness Management,Bed & Breakfast Payment,818
http://statistics.data.gov.uk/id/local-authority/12UE,Huntingdonshire District Council,22/09/2016,196285,EC038,5,"2,520.00",Ukos Projects Ltd,CR423164,Homelessness Management,Bed & Breakfast Payment,818
http://statistics.data.gov.uk/id/local-authority/12UE,Huntingdonshire District Council,29/09/2016,196668,EC040,5,"3,360.00",Ukos Projects Ltd,CR423164,Homelessness Management,Bed & Breakfast Payment,818
http://statistics.data.gov.uk/id/local-authority/12UE,Huntingdonshire District Council,09/09/2016,195589,D1IN/00024359,5,"35,000.00",Stonham Home Group,CR455893,Homelessness Management,Management Charge,733
http://statistics.data.gov.uk/id/local-authority/12UE,Huntingdonshire District Council,22/09/2016,196473,REDACTED PERSONAL DATA,5,624,Alexanders,CR415843,Homelessness Management,Removal/Storage,750
http://statistics.data.gov.uk/id/local-authority/12UE,Huntingdonshire District Council,08/09/2016,601755,8958,5,282.6,Steves Taxis & Private Hire,CR155956,Homelessness Management,Travel Expenses,636
http://statistics.data.gov.uk/id/local-authority/12UE,Huntingdonshire District Council,29/09/2016,196291,675213,5,66,Callcredit Ltd,CR455548,Housing  Benefits Admin,Enquiries,723
http://statistics.data.gov.uk/id/local-authority/12UE,Huntingdonshire District Council,09/09/2016,194651,3214020,5,"1,152.60",Venn Group Recruitment,CR415403,Housing  Benefits Admin,Hired Staff,100
http://statistics.data.gov.uk/id/local-authority/12UE,Huntingdonshire District Council,09/09/2016,195072,3216345,5,950.4,Venn Group Recruitment,CR415403,Housing  Benefits Admin,Hired Staff,100
http://statistics.data.gov.uk/id/local-authority/12UE,Huntingdonshire District Council,09/09/2016,195568,3218594,5,"1,200.00",Venn Group Recruitment,CR415403,Housing  Benefits Admin,Hired Staff,100
http://statistics.data.gov.uk/id/local-authority/12UE,Huntingdonshire District Council,15/09/2016,195856,3220793,5,835.2,Venn Group Recruitment,CR415403,Housing  Benefits Admin,Hired Staff,100
http://statistics.data.gov.uk/id/local-authority/12UE,Huntingdonshire District Council,01/09/2016,191368,IN16PS16002597,5,-552.19,Whistl Uk Ltd,CR479965,Housing  Benefits Admin,Postage,231
http://statistics.data.gov.uk/id/local-authority/12UE,Huntingdonshire District Council,01/09/2016,195133,IN16PS16004725,5,441.5,Whistl Uk Ltd,CR479965,Housing  Benefits Admin,Postage,231
http://statistics.data.gov.uk/id/local-authority/12UE,Huntingdonshire District Council,01/09/2016,195131,IN16PS16004726,5,228.48,Whistl Uk Ltd,CR479965,Housing  Benefits Admin,Postage,231
http://statistics.data.gov.uk/id/local-authority/12UE,Huntingdonshire District Council,22/09/2016,196359,IN16PS16005175,5,263.38,Whistl Uk Ltd,CR479965,Housing  Benefits Admin,Postage,231
http://statistics.data.gov.uk/id/local-authority/12UE,Huntingdonshire District Council,22/09/2016,196358,IN16PS16005315,5,298.24,Whistl Uk Ltd,CR479965,Housing  Benefits Admin,Postage,231
http://statistics.data.gov.uk/id/local-authority/12UE,Huntingdonshire District Council,22/09/2016,196362,PO25147,5,552.19,Whistl Uk Ltd,CR479965,Housing  Benefits Admin,Postage,231
http://statistics.data.gov.uk/id/local-authority/12UE,Huntingdonshire District Council,12/09/2016,194810,91375379,5,"1,140.00",Northgate Public Services,CR411767,Housing  Benefits Admin,Software,206
http://statistics.data.gov.uk/id/local-authority/12UE,Huntingdonshire District Council,22/09/2016,196425,481291201,5,"1,162.18",Swalec,CR407130,Housing Services Other,Electricity,420
http://statistics.data.gov.uk/id/local-authority/12UE,Huntingdonshire District Council,01/09/2016,195145,C-0002368450,5,269.94,Computershare Vouchers Ltd,CR412205,Human Resources,Childcare Admin Vouchers,144
http://statistics.data.gov.uk/id/local-authority/12UE,Huntingdonshire District Council,29/09/2016,196777,C-0002385358,5,265.19,Computershare Vouchers Ltd,CR412205,Human Resources,Childcare Admin Vouchers,144
http://statistics.data.gov.uk/id/local-authority/12UE,Huntingdonshire District Council,08/09/2016,195558,10686601,5,"147,480.00",Cambridgeshire County Council,CR006678,Human Resources,Client Contracts,779
http://statistics.data.gov.uk/id/local-authority/12UE,Huntingdonshire District Council,08/09/2016,194682,94524391,5,"1,170.00",Northgate Hr Limited,CR416464,Human Resources,Consultants,711
http://statistics.data.gov.uk/id/local-authority/12UE,Huntingdonshire District Council,01/09/2016,194765,INV4086,5,625,Bacpr Education,CR477846,Human Resources,Training,130
http://statistics.data.gov.uk/id/local-authority/12UE,Huntingdonshire District Council,08/09/2016,195186,INV4116,5,625,Bacpr Education,CR477846,Human Resources,Training,130
http://statistics.data.gov.uk/id/local-authority/12UE,Huntingdonshire District Council,01/09/2016,194069,4045,5,140,Boston L.G.V Training Ltd,CR423533,Human Resources,Training,130
http://statistics.data.gov.uk/id/local-authority/12UE,Huntingdonshire District Council,01/09/2016,194069,4045,5,120,Boston L.G.V Training Ltd,CR423533,Human Resources,Training,130
http://statistics.data.gov.uk/id/local-authority/12UE,Huntingdonshire District Council,29/09/2016,195527,4088,5,140,Boston L.G.V Training Ltd,CR423533,Human Resources,Training,130
http://statistics.data.gov.uk/id/local-authority/12UE,Huntingdonshire District Council,29/09/2016,195527,4088,5,120,Boston L.G.V Training Ltd,CR423533,Human Resources,Training,130
http://statistics.data.gov.uk/id/local-authority/12UE,Huntingdonshire District Council,01/09/2016,195074,612271,5,380,Chartered Inst Of Housing,CR032584,Human Resources,Training,130
http://statistics.data.gov.uk/id/local-authority/12UE,Huntingdonshire District Council,29/09/2016,195895,16228,5,375,Discovery Learning & Weight Management Centre,CR422798,Human Resources,Training,130
http://statistics.data.gov.uk/id/local-authority/12UE,Huntingdonshire District Council,23/09/2016,196620,22084,5,"1,230.00",Fgi Ltd,CR417042,Human Resources,Training,130
http://statistics.data.gov.uk/id/local-authority/12UE,Huntingdonshire District Council,12/09/2016,194681,22090,5,"1,230.00",Fgi Ltd,CR417042,Human Resources,Training,130
http://statistics.data.gov.uk/id/local-authority/12UE,Huntingdonshire District Council,09/09/2016,195612,PUK-00093,5,258,Policy Uk Ltd,CR423963,Human Resources,Training,130
http://statistics.data.gov.uk/id/local-authority/12UE,Huntingdonshire District Council,01/09/2016,601566,2501,5,"2,016.00",R C Fletcher,CR477425,Human Resources,Training,130
http://statistics.data.gov.uk/id/local-authority/12UE,Huntingdonshire District Council,29/09/2016,195491,1866,6,582,The Assoc Of Democratic Service Officers,CR455382,Human Resources,Training,130
http://statistics.data.gov.uk/id/local-authority/12UE,Huntingdonshire District Council,22/09/2016,196458,JDAINVHDC090916,5,"2,580.00",Jda-Net Ltd,CR423987,Imd Shared Service,Consultants,711
http://statistics.data.gov.uk/id/local-authority/12UE,Huntingdonshire District Council,22/09/2016,196454,JDAINVHDC160916,5,"2,580.00",Jda-Net Ltd,CR423987,Imd Shared Service,Consultants,711
http://statistics.data.gov.uk/id/local-authority/12UE,Huntingdonshire District Council,22/09/2016,195119,PSLSI1617,5,390,Project Solution  Ltd,CR455836,Imd Shared Service,Consultants,711
http://statistics.data.gov.uk/id/local-authority/12UE,Huntingdonshire District Council,22/09/2016,195153,120082,5,"1,650.00",Magiboards Ltd,CR423933,Imd Shared Service,Equipment,500
http://statistics.data.gov.uk/id/local-authority/12UE,Huntingdonshire District Council,15/09/2016,195667,SINV00093956,5,342.92,Bist,CR422733,Imd Shared Service,Equipment Maintenance,511
http://statistics.data.gov.uk/id/local-authority/12UE,Huntingdonshire District Council,01/09/2016,194119,157619,5,504,Covergold,CR032731,Imd Shared Service,Equipment Maintenance,511
http://statistics.data.gov.uk/id/local-authority/12UE,Huntingdonshire District Council,22/09/2016,195113,SIN100552,5,"3,291.12",Eacs Ltd,CR404499,Imd Shared Service,Equipment Maintenance,511
http://statistics.data.gov.uk/id/local-authority/12UE,Huntingdonshire District Council,22/09/2016,195113,SIN100552,5,"6,823.46",Eacs Ltd,CR404499,Imd Shared Service,Equipment Maintenance,511
http://statistics.data.gov.uk/id/local-authority/12UE,Huntingdonshire District Council,22/09/2016,195113,SIN100552,5,"1,305.94",Eacs Ltd,CR404499,Imd Shared Service,Equipment Maintenance,511
http://statistics.data.gov.uk/id/local-authority/12UE,Huntingdonshire District Council,09/09/2016,194452,11998,5,"6,960.00",Nettitude Limited,CR455281,Imd Shared Service,Equipment Maintenance,511
http://statistics.data.gov.uk/id/local-authority/12UE,Huntingdonshire District Council,01/09/2016,194803,WN70301567,5,"4,500.00",Capita Resourcing Ltd,CR030165,Imd Shared Service,Hired Staff,100
http://statistics.data.gov.uk/id/local-authority/12UE,Huntingdonshire District Council,01/09/2016,194801,WN70301568,5,"4,800.00",Capita Resourcing Ltd,CR030165,Imd Shared Service,Hired Staff,100
http://statistics.data.gov.uk/id/local-authority/12UE,Huntingdonshire District Council,29/09/2016,195654,WN70302797,5,"4,500.00",Capita Resourcing Ltd,CR030165,Imd Shared Service,Hired Staff,100
http://statistics.data.gov.uk/id/local-authority/12UE,Huntingdonshire District Council,01/09/2016,195122,122155,5,"3,150.00",It Talent Solutions Ltd,CR482676,Imd Shared Service,Hired Staff,100
http://statistics.data.gov.uk/id/local-authority/12UE,Huntingdonshire District Council,01/09/2016,195124,122270,5,"3,150.00",It Talent Solutions Ltd,CR482676,Imd Shared Service,Hired Staff,100
http://statistics.data.gov.uk/id/local-authority/12UE,Huntingdonshire District Council,01/09/2016,195123,122271,5,"1,350.00",It Talent Solutions Ltd,CR482676,Imd Shared Service,Hired Staff,100
http://statistics.data.gov.uk/id/local-authority/12UE,Huntingdonshire District Council,01/09/2016,195125,122301,5,"1,350.00",It Talent Solutions Ltd,CR482676,Imd Shared Service,Hired Staff,100
http://statistics.data.gov.uk/id/local-authority/12UE,Huntingdonshire District Council,01/09/2016,195126,122330,5,"3,150.00",It Talent Solutions Ltd,CR482676,Imd Shared Service,Hired Staff,100
http://statistics.data.gov.uk/id/local-authority/12UE,Huntingdonshire District Council,01/09/2016,195117,122369,5,"1,350.00",It Talent Solutions Ltd,CR482676,Imd Shared Service,Hired Staff,100
http://statistics.data.gov.uk/id/local-authority/12UE,Huntingdonshire District Council,01/09/2016,195127,122399,5,"3,150.00",It Talent Solutions Ltd,CR482676,Imd Shared Service,Hired Staff,100
http://statistics.data.gov.uk/id/local-authority/12UE,Huntingdonshire District Council,29/09/2016,196696,122417,5,"1,350.00",It Talent Solutions Ltd,CR482676,Imd Shared Service,Hired Staff,100
http://statistics.data.gov.uk/id/local-authority/12UE,Huntingdonshire District Council,29/09/2016,196697,122434,5,"2,835.00",It Talent Solutions Ltd,CR482676,Imd Shared Service,Hired Staff,100
http://statistics.data.gov.uk/id/local-authority/12UE,Huntingdonshire District Council,29/09/2016,196699,122486,5,"1,080.00",It Talent Solutions Ltd,CR482676,Imd Shared Service,Hired Staff,100
http://statistics.data.gov.uk/id/local-authority/12UE,Huntingdonshire District Council,22/09/2016,196028,122536,5,675,It Talent Solutions Ltd,CR482676,Imd Shared Service,Hired Staff,100
http://statistics.data.gov.uk/id/local-authority/12UE,Huntingdonshire District Council,29/09/2016,196692,122612,5,"2,520.00",It Talent Solutions Ltd,CR482676,Imd Shared Service,Hired Staff,100
http://statistics.data.gov.uk/id/local-authority/12UE,Huntingdonshire District Council,29/09/2016,196691,122613,5,"3,150.00",It Talent Solutions Ltd,CR482676,Imd Shared Service,Hired Staff,100
http://statistics.data.gov.uk/id/local-authority/12UE,Huntingdonshire District Council,29/09/2016,196693,122617,5,"3,150.00",It Talent Solutions Ltd,CR482676,Imd Shared Service,Hired Staff,100
http://statistics.data.gov.uk/id/local-authority/12UE,Huntingdonshire District Council,29/09/2016,196694,122623,5,"1,350.00",It Talent Solutions Ltd,CR482676,Imd Shared Service,Hired Staff,100
http://statistics.data.gov.uk/id/local-authority/12UE,Huntingdonshire District Council,29/09/2016,196706,JDAINVHDC230916,5,"2,064.00",Jda-Net Ltd,CR423987,Imd Shared Service,Hired Staff,100
http://statistics.data.gov.uk/id/local-authority/12UE,Huntingdonshire District Council,01/09/2016,195120,R016221,5,710.4,Premier It Recruitment Ltd,CR454029,Imd Shared Service,Hired Staff,100
http://statistics.data.gov.uk/id/local-authority/12UE,Huntingdonshire District Council,29/09/2016,195662,R016344,5,710.4,Premier It Recruitment Ltd,CR454029,Imd Shared Service,Hired Staff,100
http://statistics.data.gov.uk/id/local-authority/12UE,Huntingdonshire District Council,29/09/2016,196687,R016812,5,710.4,Premier It Recruitment Ltd,CR454029,Imd Shared Service,Hired Staff,100
http://statistics.data.gov.uk/id/local-authority/12UE,Huntingdonshire District Council,29/09/2016,196686,R016813,5,710.4,Premier It Recruitment Ltd,CR454029,Imd Shared Service,Hired Staff,100
http://statistics.data.gov.uk/id/local-authority/12UE,Huntingdonshire District Council,01/09/2016,194451,13615,5,"3,348.00",Vivid Resourcing Limited,CR423536,Imd Shared Service,Hired Staff,100
http://statistics.data.gov.uk/id/local-authority/12UE,Huntingdonshire District Council,01/09/2016,194812,13793,5,"3,720.00",Vivid Resourcing Limited,CR423536,Imd Shared Service,Hired Staff,100
http://statistics.data.gov.uk/id/local-authority/12UE,Huntingdonshire District Council,01/09/2016,194813,13945,5,"3,720.00",Vivid Resourcing Limited,CR423536,Imd Shared Service,Hired Staff,100
http://statistics.data.gov.uk/id/local-authority/12UE,Huntingdonshire District Council,01/09/2016,195121,14098,5,"3,720.00",Vivid Resourcing Limited,CR423536,Imd Shared Service,Hired Staff,100
http://statistics.data.gov.uk/id/local-authority/12UE,Huntingdonshire District Council,29/09/2016,195664,14263,5,"3,720.00",Vivid Resourcing Limited,CR423536,Imd Shared Service,Hired Staff,100
http://statistics.data.gov.uk/id/local-authority/12UE,Huntingdonshire District Council,01/09/2016,194136,742878104/0816,5,993.74,Virgin Media Business,CR033120,Imd Shared Service,I T Line Rental,248
http://statistics.data.gov.uk/id/local-authority/12UE,Huntingdonshire District Council,29/09/2016,196030,923469-071A,5,"7,154.90",Virgin Media Business/Cpsn,CR455148,Imd Shared Service,I T Line Rental,248
http://statistics.data.gov.uk/id/local-authority/12UE,Huntingdonshire District Council,29/09/2016,196375,13544,5,"1,303.20",Advanced Power Technology Ltd,CR423568,Imd Shared Service,Other I T Hardware,203
http://statistics.data.gov.uk/id/local-authority/12UE,Huntingdonshire District Council,15/09/2016,195669,SINV00094779,5,936,Bist,CR422733,Imd Shared Service,Other I T Hardware,203
http://statistics.data.gov.uk/id/local-authority/12UE,Huntingdonshire District Council,01/09/2016,194907,3019942,5,936,Insight Direct Uk Ltd,CR000242,Imd Shared Service,Other I T Hardware,203
http://statistics.data.gov.uk/id/local-authority/12UE,Huntingdonshire District Council,22/09/2016,195656,ARCMIN/99058224,5,353.59,Advanced Business Solutions,CR032921,Imd Shared Service,Software,206
http://statistics.data.gov.uk/id/local-authority/12UE,Huntingdonshire District Council,22/09/2016,195111,251164,5,"7,213.27",Caci Limited,CR409683,Imd Shared Service,Software,206
http://statistics.data.gov.uk/id/local-authority/12UE,Huntingdonshire District Council,29/09/2016,196688,2016322,5,"8,412.00",Modern Mindset Ltd,CR482623,Imd Shared Service,Software,206
http://statistics.data.gov.uk/id/local-authority/12UE,Huntingdonshire District Council,22/09/2016,195118,91375995,5,"14,100.00",Northgatepublic Services Uk Ltd,CR028925,Imd Shared Service,Software,206
http://statistics.data.gov.uk/id/local-authority/12UE,Huntingdonshire District Council,29/09/2016,195644,91376058,5,"3,000.00",Northgatepublic Services Uk Ltd,CR028925,Imd Shared Service,Software,206
http://statistics.data.gov.uk/id/local-authority/12UE,Huntingdonshire District Council,01/09/2016,194775,OP/I781866,5,375.01,Phoenix Software Ltd,CR031918,Imd Shared Service,Software,206
http://statistics.data.gov.uk/id/local-authority/12UE,Huntingdonshire District Council,29/09/2016,196754,OP/I783223,5,750.02,Phoenix Software Ltd,CR031918,Imd Shared Service,Software,206
http://statistics.data.gov.uk/id/local-authority/12UE,Huntingdonshire District Council,29/09/2016,196754,OP/I783223,5,320.71,Phoenix Software Ltd,CR031918,Imd Shared Service,Software,206
http://statistics.data.gov.uk/id/local-authority/12UE,Huntingdonshire District Council,01/09/2016,194136,742878104/0816,5,"1,620.31",Virgin Media Business,CR033120,Imd Shared Service,Telephone &Mobile Phonecharges,240
http://statistics.data.gov.uk/id/local-authority/12UE,Huntingdonshire District Council,15/09/2016,601726,20832,4,"4,015.00",Premier Service And Installation,CR453810,Improvement Grants,Mandatory Grants,801
http://statistics.data.gov.uk/id/local-authority/12UE,Huntingdonshire District Council,09/09/2016,194218,JBC/28335/5106C,5,"1,977.60",J Breheny Contractors Ltd,CR000314,Industrial Properties,Building Mtce,303
http://statistics.data.gov.uk/id/local-authority/12UE,Huntingdonshire District Council,01/09/2016,601317,10689819,5,"2,762.00",Cambridgeshire County Council,CR017440,Industrial Properties,Profit Share Payable,805
http://statistics.data.gov.uk/id/local-authority/12UE,Huntingdonshire District Council,12/09/2016,195811,14566,5,368.28,Jade Security Services Ltd,CR422256,Interest Received,Cash Collection,702
http://statistics.data.gov.uk/id/local-authority/12UE,Huntingdonshire District Council,15/09/2016,193185,79443,5,"3,298.32",Jsa Leisure Ltd,CR40187,Leisure Centres Capital,Building Mtce,303
http://statistics.data.gov.uk/id/local-authority/12UE,Huntingdonshire District Council,29/09/2016,196643,5753,5,"3,940.20",Steamworks Ltd T/A Anapos,CR423966,Leisure Centres Capital,Building Mtce,303
http://statistics.data.gov.uk/id/local-authority/12UE,Huntingdonshire District Council,22/09/2016,194896,426414,5,"1,163.39",Heasell Electromechanical Services Ltd,CR422407,Leisure Centres Capital,Plant & Equipment Maintenance,380
http://statistics.data.gov.uk/id/local-authority/12UE,Huntingdonshire District Council,22/09/2016,196372,426575,5,"3,006.00",Heasell Electromechanical Services Ltd,CR422407,Leisure Centres Capital,Plant & Equipment Maintenance,380
http://statistics.data.gov.uk/id/local-authority/12UE,Huntingdonshire District Council,22/09/2016,196371,426576,5,326.34,Heasell Electromechanical Services Ltd,CR422407,Leisure Centres Capital,Plant & Equipment Maintenance,380
http://statistics.data.gov.uk/id/local-authority/12UE,Huntingdonshire District Council,01/09/2016,194888,EVE15210,5,594,Institute Of Licensing(Events) Limited,CR480382,Licences,Training,130
http://statistics.data.gov.uk/id/local-authority/12UE,Huntingdonshire District Council,08/09/2016,194721,10692008,5,"5,500.00",Cambridgeshire County Council,CR006678,Local Development Framework,Contribution (Paid Out),810
http://statistics.data.gov.uk/id/local-authority/12UE,Huntingdonshire District Council,22/09/2016,196457,16271,5,270,Bigprinting,CR416383,Markets,Signs,565
http://statistics.data.gov.uk/id/local-authority/12UE,Huntingdonshire District Council,29/09/2016,195581,T2016/1,5,"1,292.69",James Button & Co,CR405456,Member Allowances & Support,Training,130
http://statistics.data.gov.uk/id/local-authority/12UE,Huntingdonshire District Council,08/09/2016,601692,GRANT,4,275,1st Loves Farm Guides,CR423938,Miscellaneous Grants,Grants (Paid Out),800
http://statistics.data.gov.uk/id/local-authority/12UE,Huntingdonshire District Council,08/09/2016,601091,GRANT,4,"3,400.00",Alconbury Community Pre School,CR423931,Miscellaneous Grants,Grants (Paid Out),800
http://statistics.data.gov.uk/id/local-authority/12UE,Huntingdonshire District Council,29/09/2016,196012,3 QTR GRANT,5,"2,500.00",Care Network,CR477579,Miscellaneous Grants,Grants (Paid Out),800
http://statistics.data.gov.uk/id/local-authority/12UE,Huntingdonshire District Council,08/09/2016,600901,GRANT,4,250,Darby & Joan Club St Ives,CR423921,Miscellaneous Grants,Grants (Paid Out),800
http://statistics.data.gov.uk/id/local-authority/12UE,Huntingdonshire District Council,29/09/2016,196013,OE,5,"4,750.00",Disability Information Service Huntingdonshir,CR408884,Miscellaneous Grants,Grants (Paid Out),800
http://statistics.data.gov.uk/id/local-authority/12UE,Huntingdonshire District Council,08/09/2016,601691,COMM GRANT,4,"3,252.00",Great Staughton Playing Field Committee,CR423955,Miscellaneous Grants,Grants (Paid Out),800
http://statistics.data.gov.uk/id/local-authority/12UE,Huntingdonshire District Council,08/09/2016,601696,GRANTS,4,"2,500.00",Huntingdon & District Swimming Club,CR423939,Miscellaneous Grants,Grants (Paid Out),800
http://statistics.data.gov.uk/id/local-authority/12UE,Huntingdonshire District Council,29/09/2016,195371,900752818,5,807.04,Portakabin Ltd,CR478566,Miscellaneous Grants,Grants (Paid Out),800
http://statistics.data.gov.uk/id/local-authority/12UE,Huntingdonshire District Council,29/09/2016,602117,3QTR  GRANT,4,"26,325.00",Rural Cambs Citzens Advice Bureau,CR455454,Miscellaneous Grants,Grants (Paid Out),800
http://statistics.data.gov.uk/id/local-authority/12UE,Huntingdonshire District Council,08/09/2016,601693,GRANT,4,850,Team Bex,CR423956,Miscellaneous Grants,Grants (Paid Out),800
http://statistics.data.gov.uk/id/local-authority/12UE,Huntingdonshire District Council,09/09/2016,195374,4054,5,"1,105.66",Newlyn Plc,CR409114,N N D R Administration,Bailiffs,703
http://statistics.data.gov.uk/id/local-authority/12UE,Huntingdonshire District Council,09/09/2016,194216,JBC/28337/5106/,5,818.4,J Breheny Contractors Ltd,CR000314,Oak Tree Health Centre,Building Mtce,303
http://statistics.data.gov.uk/id/local-authority/12UE,Huntingdonshire District Council,22/09/2016,196327,552042,5,412.24,Ecocleen Services Limited,CR406985,Off Street Parking,Building Cleaning,440
http://statistics.data.gov.uk/id/local-authority/12UE,Huntingdonshire District Council,29/09/2016,196322,552397,5,412.24,Ecocleen Services Limited,CR406985,Off Street Parking,Building Cleaning,440
http://statistics.data.gov.uk/id/local-authority/12UE,Huntingdonshire District Council,09/09/2016,194221,JBC/28331/5106,5,318.6,J Breheny Contractors Ltd,CR000314,Off Street Parking,Building Mtce,303
http://statistics.data.gov.uk/id/local-authority/12UE,Huntingdonshire District Council,15/09/2016,196015,C020041806,5,279.55,Stannah Lifts,CR088939,Off Street Parking,Building Mtce,303
http://statistics.data.gov.uk/id/local-authority/12UE,Huntingdonshire District Council,15/09/2016,195963,14375,5,"4,712.76",Jade Security Services Ltd,CR422256,Off Street Parking,Cash Collection,702
http://statistics.data.gov.uk/id/local-authority/12UE,Huntingdonshire District Council,15/09/2016,195651,14565,5,"4,719.60",Jade Security Services Ltd,CR422256,Off Street Parking,Cash Collection,702
http://statistics.data.gov.uk/id/local-authority/12UE,Huntingdonshire District Council,15/09/2016,196018,,5,"43,000.00",Waitrose,CR019599,Off Street Parking,Contribution (Paid Out),810
http://statistics.data.gov.uk/id/local-authority/12UE,Huntingdonshire District Council,01/09/2016,195136,441567103,5,"1,805.22",Swalec,CR407130,Off Street Parking,Electricity,420
http://statistics.data.gov.uk/id/local-authority/12UE,Huntingdonshire District Council,12/09/2016,195171,116298,5,"3,610.33",Cale Briparc Ltd,CR401137,Off Street Parking,Equipment Maintenance,511
http://statistics.data.gov.uk/id/local-authority/12UE,Huntingdonshire District Council,09/09/2016,194224,JBC/28327/5106J,5,396,J Breheny Contractors Ltd,CR000314,Off Street Parking,Sitework,359
http://statistics.data.gov.uk/id/local-authority/12UE,Huntingdonshire District Council,09/09/2016,194220,JBC/28332/5106/,5,297.6,J Breheny Contractors Ltd,CR000314,Off Street Parking,Sitework,359
http://statistics.data.gov.uk/id/local-authority/12UE,Huntingdonshire District Council,08/09/2016,194095,39821,5,614,Clanpress King'S Lynn Ltd,CR413516,One Leisure Active Lifestyles,Advertising/Promoting Services,255
http://statistics.data.gov.uk/id/local-authority/12UE,Huntingdonshire District Council,08/09/2016,194558,GW16086F,5,181,Grafham Water Centre,CR416894,One Leisure Active Lifestyles,Hire Of Rooms,411
http://statistics.data.gov.uk/id/local-authority/12UE,Huntingdonshire District Council,08/09/2016,194556,GW16089F,5,190,Grafham Water Centre,CR416894,One Leisure Active Lifestyles,Hire Of Rooms,411
http://statistics.data.gov.uk/id/local-authority/12UE,Huntingdonshire District Council,29/09/2016,196048,GW16101F,5,147,Grafham Water Centre,CR416894,One Leisure Active Lifestyles,Hire Of Rooms,411
http://statistics.data.gov.uk/id/local-authority/12UE,Huntingdonshire District Council,01/09/2016,194555,GW16082F,5,330,Grafham Water Centre,CR416894,One Leisure Active Lifestyles,Instructors/Tutors,720
http://statistics.data.gov.uk/id/local-authority/12UE,Huntingdonshire District Council,08/09/2016,194558,GW16086F,5,440,Grafham Water Centre,CR416894,One Leisure Active Lifestyles,Instructors/Tutors,720
http://statistics.data.gov.uk/id/local-authority/12UE,Huntingdonshire District Council,08/09/2016,194556,GW16089F,5,450,Grafham Water Centre,CR416894,One Leisure Active Lifestyles,Instructors/Tutors,720
http://statistics.data.gov.uk/id/local-authority/12UE,Huntingdonshire District Council,01/09/2016,194913,GW16089F,5,991,Grafham Water Centre,CR416894,One Leisure Active Lifestyles,Instructors/Tutors,720
http://statistics.data.gov.uk/id/local-authority/12UE,Huntingdonshire District Council,29/09/2016,196048,GW16101F,5,366,Grafham Water Centre,CR416894,One Leisure Active Lifestyles,Instructors/Tutors,720
http://statistics.data.gov.uk/id/local-authority/12UE,Huntingdonshire District Council,08/09/2016,195619,19,5,"1,800.00",Paxton Lakes Sailing Club,CR406534,One Leisure Active Lifestyles,Instructors/Tutors,720
http://statistics.data.gov.uk/id/local-authority/12UE,Huntingdonshire District Council,22/09/2016,196394,16669,5,216,Bigprinting,CR416383,One Leisure Active Lifestyles,Printing (External),220
http://statistics.data.gov.uk/id/local-authority/12UE,Huntingdonshire District Council,08/09/2016,194490,82588393,5,371.71,Archant Herts & Cambs,CR415764,One Leisure Corporate Mgt,Advertising/Promoting Services,255
http://statistics.data.gov.uk/id/local-authority/12UE,Huntingdonshire District Council,08/09/2016,194491,82588393,5,257.15,Archant Herts & Cambs,CR415764,One Leisure Corporate Mgt,Advertising/Promoting Services,255
http://statistics.data.gov.uk/id/local-authority/12UE,Huntingdonshire District Council,22/09/2016,196450,82590423-2,5,371.71,Archant Herts & Cambs,CR415764,One Leisure Corporate Mgt,Advertising/Promoting Services,255
http://statistics.data.gov.uk/id/local-authority/12UE,Huntingdonshire District Council,15/09/2016,190295,11376,5,"1,200.00",Hattrick Marketing,CR422145,One Leisure Corporate Mgt,Advertising/Promoting Services,255
http://statistics.data.gov.uk/id/local-authority/12UE,Huntingdonshire District Council,01/09/2016,194052,327489,5,353.62,Primesight  Ltd,CR132710,One Leisure Corporate Mgt,Advertising/Promoting Services,255
http://statistics.data.gov.uk/id/local-authority/12UE,Huntingdonshire District Council,22/09/2016,196397,11/08/2016,5,"1,020.00",Vogels Advertising Services,CR455220,One Leisure Corporate Mgt,Advertising/Promoting Services,255
http://statistics.data.gov.uk/id/local-authority/12UE,Huntingdonshire District Council,08/09/2016,194683,9052739595,5,821.33,Royal Mail,CR027083,One Leisure Corporate Mgt,Postage,231
http://statistics.data.gov.uk/id/local-authority/12UE,Huntingdonshire District Council,22/09/2016,196359,IN16PS16005175,5,128.65,Whistl Uk Ltd,CR479965,One Leisure Corporate Mgt,Postage,231
http://statistics.data.gov.uk/id/local-authority/12UE,Huntingdonshire District Council,22/09/2016,196394,16669,5,919.2,Bigprinting,CR416383,One Leisure Corporate Mgt,Printing (External),220
http://statistics.data.gov.uk/id/local-authority/12UE,Huntingdonshire District Council,01/09/2016,194052,327489,5,"1,980.00",Primesight  Ltd,CR132710,One Leisure Corporate Mgt,Printing (External),220
http://statistics.data.gov.uk/id/local-authority/12UE,Huntingdonshire District Council,29/09/2016,196398,61703,5,144,Clubnet Limited,CR422543,One Leisure Huntingdon,Advertising/Promoting Services,255
http://statistics.data.gov.uk/id/local-authority/12UE,Huntingdonshire District Council,08/09/2016,195257,71235,5,257.56,Snackline Direct Ltd,CR478090,One Leisure Huntingdon,Bar Provisions,558
http://statistics.data.gov.uk/id/local-authority/12UE,Huntingdonshire District Council,09/09/2016,194459,30215,5,755.65,Hi-Spec Facilities Services Plc,CR423413,One Leisure Huntingdon,Building Cleaning,440
http://statistics.data.gov.uk/id/local-authority/12UE,Huntingdonshire District Council,09/09/2016,194458,30448,5,755.65,Hi-Spec Facilities Services Plc,CR423413,One Leisure Huntingdon,Building Cleaning,440
http://statistics.data.gov.uk/id/local-authority/12UE,Huntingdonshire District Council,09/09/2016,193288,CD200014191,5,306.72,Integrated Water Services Ltd,CR452140,One Leisure Huntingdon,Building Mtce,303
http://statistics.data.gov.uk/id/local-authority/12UE,Huntingdonshire District Council,12/09/2016,195811,14566,5,267.84,Jade Security Services Ltd,CR422256,One Leisure Huntingdon,Cash Collection,702
http://statistics.data.gov.uk/id/local-authority/12UE,Huntingdonshire District Council,08/09/2016,195257,71235,5,100.75,Snackline Direct Ltd,CR478090,One Leisure Huntingdon,Confectionery,572
http://statistics.data.gov.uk/id/local-authority/12UE,Huntingdonshire District Council,09/09/2016,194079,13189,5,"2,811.00",I-Clean Systems Ltd,CR423141,One Leisure Huntingdon,Consultants,711
http://statistics.data.gov.uk/id/local-authority/12UE,Huntingdonshire District Council,15/09/2016,195524,65916,5,"4,734.27",Haven Power Ltd,CR455940,One Leisure Huntingdon,Electricity,420
http://statistics.data.gov.uk/id/local-authority/12UE,Huntingdonshire District Council,15/09/2016,195903,1300007292,5,"1,632.00",Craftsman Quality Lockers Ltd,CR410022,One Leisure Huntingdon,Equipment,500
http://statistics.data.gov.uk/id/local-authority/12UE,Huntingdonshire District Council,22/09/2016,194712,6764,5,342,Fitness Warehouse Ltd,CR422295,One Leisure Huntingdon,Equipment,500
http://statistics.data.gov.uk/id/local-authority/12UE,Huntingdonshire District Council,01/09/2016,194016,1125997687,5,374.11,Konica Minolta,CR478866,One Leisure Huntingdon,Equipment,500
http://statistics.data.gov.uk/id/local-authority/12UE,Huntingdonshire District Council,22/09/2016,196436,1489088970,5,391.79,E-On Energy,CR416430,One Leisure Huntingdon,Gas,421
http://statistics.data.gov.uk/id/local-authority/12UE,Huntingdonshire District Council,22/09/2016,196474,12489088110,5,"2,664.19",E-On Energy,CR416430,One Leisure Huntingdon,Gas,421
http://statistics.data.gov.uk/id/local-authority/12UE,Huntingdonshire District Council,22/09/2016,194717,I3799,5,"1,205.00",Zurich Municipal,CR003638,One Leisure Huntingdon,Insurance Excess,797
http://statistics.data.gov.uk/id/local-authority/12UE,Huntingdonshire District Council,22/09/2016,195456,1232630,5,252.12,Badgemaster,CR400716,One Leisure Huntingdon,Materials,550
http://statistics.data.gov.uk/id/local-authority/12UE,Huntingdonshire District Council,15/09/2016,195799,206173,5,399.66,Qualsafe,CR479985,One Leisure Huntingdon,Materials,550
http://statistics.data.gov.uk/id/local-authority/12UE,Huntingdonshire District Council,01/09/2016,193714,92367101,5,601.73,Speedo International Limited,CR41427,One Leisure Huntingdon,Materials For Resale,570
http://statistics.data.gov.uk/id/local-authority/12UE,Huntingdonshire District Council,22/09/2016,196279,S3085101,5,406.56,First In Service Ltd,CR422285,One Leisure Huntingdon,Plant & Equipment Maintenance,380
http://statistics.data.gov.uk/id/local-authority/12UE,Huntingdonshire District Council,22/09/2016,196156,426441,5,"2,508.92",Heasell Electromechanical Services Ltd,CR422407,One Leisure Huntingdon,Plant & Equipment Maintenance,380
http://statistics.data.gov.uk/id/local-authority/12UE,Huntingdonshire District Council,22/09/2016,196394,16669,5,49.2,Bigprinting,CR416383,One Leisure Huntingdon,Printing (External),220
http://statistics.data.gov.uk/id/local-authority/12UE,Huntingdonshire District Council,29/09/2016,195181,14020,5,"1,440.00",Roi Software Distribution Ltd,CR422116,One Leisure Huntingdon,Printing (External),220
http://statistics.data.gov.uk/id/local-authority/12UE,Huntingdonshire District Council,01/09/2016,194086,1028496,5,"1,240.14",Taylor Made Designs,CR417271,One Leisure Huntingdon,Protective Clothing & Uniforms,163
http://statistics.data.gov.uk/id/local-authority/12UE,Huntingdonshire District Council,08/09/2016,195454,SUP0004328,5,"6,487.28",Gladstone Mrm,CR405717,One Leisure Huntingdon,Software,206
http://statistics.data.gov.uk/id/local-authority/12UE,Huntingdonshire District Council,08/09/2016,195622,39231,5,708,Hytrac Lifts Ltd,CR030618,One Leisure Huntingdon,Training,130
http://statistics.data.gov.uk/id/local-authority/12UE,Huntingdonshire District Council,22/09/2016,196312,SI00266572,5,208,Swimming Teachers Association,CR001032,One Leisure Huntingdon,Training,130
http://statistics.data.gov.uk/id/local-authority/12UE,Huntingdonshire District Council,09/09/2016,194459,30215,5,593.74,Hi-Spec Facilities Services Plc,CR423413,One Leisure Ramsey,Building Cleaning,440
http://statistics.data.gov.uk/id/local-authority/12UE,Huntingdonshire District Council,09/09/2016,194458,30448,5,593.74,Hi-Spec Facilities Services Plc,CR423413,One Leisure Ramsey,Building Cleaning,440
http://statistics.data.gov.uk/id/local-authority/12UE,Huntingdonshire District Council,12/09/2016,195811,14566,5,66.96,Jade Security Services Ltd,CR422256,One Leisure Ramsey,Cash Collection,702
http://statistics.data.gov.uk/id/local-authority/12UE,Huntingdonshire District Council,09/09/2016,194079,13189,5,"1,405.50",I-Clean Systems Ltd,CR423141,One Leisure Ramsey,Consultants,711
http://statistics.data.gov.uk/id/local-authority/12UE,Huntingdonshire District Council,22/09/2016,196434,12489090790,5,806.09,E-On Energy,CR416430,One Leisure Ramsey,Gas,421
http://statistics.data.gov.uk/id/local-authority/12UE,Huntingdonshire District Council,22/09/2016,195734,3083291,5,"1,611.46",First In Service Ltd,CR422285,One Leisure Ramsey,Plant & Equipment Maintenance,380
http://statistics.data.gov.uk/id/local-authority/12UE,Huntingdonshire District Council,01/09/2016,195039,S3084574,5,357.6,First In Service Ltd,CR422285,One Leisure Ramsey,Plant & Equipment Maintenance,380
http://statistics.data.gov.uk/id/local-authority/12UE,Huntingdonshire District Council,29/09/2016,195181,14020,5,720,Roi Software Distribution Ltd,CR422116,One Leisure Ramsey,Printing (External),220
http://statistics.data.gov.uk/id/local-authority/12UE,Huntingdonshire District Council,01/09/2016,194086,1028496,5,59.76,Taylor Made Designs,CR417271,One Leisure Ramsey,Protective Clothing & Uniforms,163
http://statistics.data.gov.uk/id/local-authority/12UE,Huntingdonshire District Council,08/09/2016,195454,SUP0004328,5,"3,443.65",Gladstone Mrm,CR405717,One Leisure Ramsey,Software,206
http://statistics.data.gov.uk/id/local-authority/12UE,Huntingdonshire District Council,22/09/2016,196312,SI00266572,5,110.5,Swimming Teachers Association,CR001032,One Leisure Ramsey,Training,130
http://statistics.data.gov.uk/id/local-authority/12UE,Huntingdonshire District Council,09/09/2016,194459,30215,5,620.72,Hi-Spec Facilities Services Plc,CR423413,One Leisure Sawtry,Building Cleaning,440
http://statistics.data.gov.uk/id/local-authority/12UE,Huntingdonshire District Council,09/09/2016,194458,30448,5,620.72,Hi-Spec Facilities Services Plc,CR423413,One Leisure Sawtry,Building Cleaning,440
http://statistics.data.gov.uk/id/local-authority/12UE,Huntingdonshire District Council,12/09/2016,195811,14566,5,66.96,Jade Security Services Ltd,CR422256,One Leisure Sawtry,Cash Collection,702
http://statistics.data.gov.uk/id/local-authority/12UE,Huntingdonshire District Council,01/09/2016,194422,38SI3830230,5,963.4,Brenntag Uk Ltd,CR015017,One Leisure Sawtry,Chemicals,551
http://statistics.data.gov.uk/id/local-authority/12UE,Huntingdonshire District Council,09/09/2016,194079,13189,5,"1,405.50",I-Clean Systems Ltd,CR423141,One Leisure Sawtry,Consultants,711
http://statistics.data.gov.uk/id/local-authority/12UE,Huntingdonshire District Council,22/09/2016,196426,941240466,5,"4,098.69",Swalec,CR407130,One Leisure Sawtry,Electricity,420
http://statistics.data.gov.uk/id/local-authority/12UE,Huntingdonshire District Council,22/09/2016,196437,12489088700,5,791.77,E-On Energy,CR416430,One Leisure Sawtry,Gas,421
http://statistics.data.gov.uk/id/local-authority/12UE,Huntingdonshire District Council,22/09/2016,196038,S3084265,5,742.8,First In Service Ltd,CR422285,One Leisure Sawtry,Plant & Equipment Maintenance,380
http://statistics.data.gov.uk/id/local-authority/12UE,Huntingdonshire District Council,29/09/2016,195181,14020,5,720,Roi Software Distribution Ltd,CR422116,One Leisure Sawtry,Printing (External),220
http://statistics.data.gov.uk/id/local-authority/12UE,Huntingdonshire District Council,01/09/2016,194086,1028496,5,59.76,Taylor Made Designs,CR417271,One Leisure Sawtry,Protective Clothing & Uniforms,163
http://statistics.data.gov.uk/id/local-authority/12UE,Huntingdonshire District Council,08/09/2016,195454,SUP0004328,5,"3,443.66",Gladstone Mrm,CR405717,One Leisure Sawtry,Software,206
http://statistics.data.gov.uk/id/local-authority/12UE,Huntingdonshire District Council,22/09/2016,196312,SI00266572,5,110.5,Swimming Teachers Association,CR001032,One Leisure Sawtry,Training,130
http://statistics.data.gov.uk/id/local-authority/12UE,Huntingdonshire District Council,29/09/2016,195733,72286,5,322.6,Snackline Direct Ltd,CR478090,One Leisure Sawtry,Vending Materials,560
http://statistics.data.gov.uk/id/local-authority/12UE,Huntingdonshire District Council,22/09/2016,196281,101179000,5,847.48,Anglian Water,CR000071,One Leisure Sawtry,Water & Sewerage,432
http://statistics.data.gov.uk/id/local-authority/12UE,Huntingdonshire District Council,01/09/2016,195109,82571617,5,283.5,Archant Herts & Cambs,CR415764,One Leisure St Ives,Advertising/Promoting Services,255
http://statistics.data.gov.uk/id/local-authority/12UE,Huntingdonshire District Council,01/09/2016,195100,82581404,5,257.15,Archant Herts & Cambs,CR415764,One Leisure St Ives,Advertising/Promoting Services,255
http://statistics.data.gov.uk/id/local-authority/12UE,Huntingdonshire District Council,01/09/2016,195102,82581404,5,371.71,Archant Herts & Cambs,CR415764,One Leisure St Ives,Advertising/Promoting Services,255
http://statistics.data.gov.uk/id/local-authority/12UE,Huntingdonshire District Council,01/09/2016,195097,82584875,5,540,Archant Herts & Cambs,CR415764,One Leisure St Ives,Advertising/Promoting Services,255
http://statistics.data.gov.uk/id/local-authority/12UE,Huntingdonshire District Council,01/09/2016,195098,82584875,5,371.71,Archant Herts & Cambs,CR415764,One Leisure St Ives,Advertising/Promoting Services,255
http://statistics.data.gov.uk/id/local-authority/12UE,Huntingdonshire District Council,15/09/2016,190295,11376,5,390,Hattrick Marketing,CR422145,One Leisure St Ives,Advertising/Promoting Services,255
http://statistics.data.gov.uk/id/local-authority/12UE,Huntingdonshire District Council,29/09/2016,196384,61102234,5,360,Local World Ltd,CR000072,One Leisure St Ives,Advertising/Promoting Services,255
http://statistics.data.gov.uk/id/local-authority/12UE,Huntingdonshire District Council,29/09/2016,196387,2125,5,330,The Wedding Planner,CR482566,One Leisure St Ives,Advertising/Promoting Services,255
http://statistics.data.gov.uk/id/local-authority/12UE,Huntingdonshire District Council,08/09/2016,194824,2102668918,5,978.84,Booker Cash And Carry,CR027611,One Leisure St Ives,Bar Provisions,558
http://statistics.data.gov.uk/id/local-authority/12UE,Huntingdonshire District Council,22/09/2016,195372,2102692439,5,"2,527.68",Booker Cash And Carry,CR027611,One Leisure St Ives,Bar Provisions,558
http://statistics.data.gov.uk/id/local-authority/12UE,Huntingdonshire District Council,15/09/2016,195801,2102703844,5,267.22,Booker Cash And Carry,CR027611,One Leisure St Ives,Bar Provisions,558
http://statistics.data.gov.uk/id/local-authority/12UE,Huntingdonshire District Council,09/09/2016,195058,625562,5,425.77,Lacons,CR422174,One Leisure St Ives,Bar Provisions,558
http://statistics.data.gov.uk/id/local-authority/12UE,Huntingdonshire District Council,29/09/2016,195393,626810,5,"2,083.10",Lacons,CR422174,One Leisure St Ives,Bar Provisions,558
http://statistics.data.gov.uk/id/local-authority/12UE,Huntingdonshire District Council,09/09/2016,195395,626886,5,709.25,Lacons,CR422174,One Leisure St Ives,Bar Provisions,558
http://statistics.data.gov.uk/id/local-authority/12UE,Huntingdonshire District Council,29/09/2016,195187,I148640,5,"1,229.90",Oakham Ales,CR422253,One Leisure St Ives,Bar Provisions,558
http://statistics.data.gov.uk/id/local-authority/12UE,Huntingdonshire District Council,08/09/2016,194406,366815,5,28.03,South Lincs Food Service,CR033415,One Leisure St Ives,Bar Provisions,558
http://statistics.data.gov.uk/id/local-authority/12UE,Huntingdonshire District Council,08/09/2016,195386,373154,5,46.38,South Lincs Food Service,CR033415,One Leisure St Ives,Bar Provisions,558
http://statistics.data.gov.uk/id/local-authority/12UE,Huntingdonshire District Council,22/09/2016,195867,281016,5,136.02,Westminster Foodservice,CR455156,One Leisure St Ives,Bar Provisions,558
http://statistics.data.gov.uk/id/local-authority/12UE,Huntingdonshire District Council,09/09/2016,194459,30215,5,"4,560.91",Hi-Spec Facilities Services Plc,CR423413,One Leisure St Ives,Building Cleaning,440
http://statistics.data.gov.uk/id/local-authority/12UE,Huntingdonshire District Council,09/09/2016,194458,30448,5,"4,560.91",Hi-Spec Facilities Services Plc,CR423413,One Leisure St Ives,Building Cleaning,440
http://statistics.data.gov.uk/id/local-authority/12UE,Huntingdonshire District Council,29/09/2016,195184,1639,5,832.8,Flexerefrigeration Ltd,CR422336,One Leisure St Ives,Building Mtce,303
http://statistics.data.gov.uk/id/local-authority/12UE,Huntingdonshire District Council,29/09/2016,195377,1660,5,376.2,Flexerefrigeration Ltd,CR422336,One Leisure St Ives,Building Mtce,303
http://statistics.data.gov.uk/id/local-authority/12UE,Huntingdonshire District Council,09/09/2016,193290,CD200014187,5,260.64,Integrated Water Services Ltd,CR452140,One Leisure St Ives,Building Mtce,303
http://statistics.data.gov.uk/id/local-authority/12UE,Huntingdonshire District Council,09/09/2016,194217,JBC/28334/5106/,5,"1,650.38",J Breheny Contractors Ltd,CR000314,One Leisure St Ives,Building Mtce,303
http://statistics.data.gov.uk/id/local-authority/12UE,Huntingdonshire District Council,29/09/2016,196249,15TH SEP 16,5,305,Lui The Plumber,CR422379,One Leisure St Ives,Building Mtce,303
http://statistics.data.gov.uk/id/local-authority/12UE,Huntingdonshire District Council,29/09/2016,195949,12293,5,269.34,Playfords Ltd,CR479055,One Leisure St Ives,Building Mtce,303
http://statistics.data.gov.uk/id/local-authority/12UE,Huntingdonshire District Council,15/09/2016,195798,9660,5,440.4,Roger Wilson Electronics,CR028041,One Leisure St Ives,Building Mtce,303
http://statistics.data.gov.uk/id/local-authority/12UE,Huntingdonshire District Council,15/09/2016,195901,19012,5,840,Roof Safety Solutions Ltd,CR478995,One Leisure St Ives,Building Mtce,303
http://statistics.data.gov.uk/id/local-authority/12UE,Huntingdonshire District Council,15/09/2016,195900,19016,5,480,Roof Safety Solutions Ltd,CR478995,One Leisure St Ives,Building Mtce,303
http://statistics.data.gov.uk/id/local-authority/12UE,Huntingdonshire District Council,12/09/2016,195811,14566,5,200.88,Jade Security Services Ltd,CR422256,One Leisure St Ives,Cash Collection,702
http://statistics.data.gov.uk/id/local-authority/12UE,Huntingdonshire District Council,08/09/2016,194824,2102668918,5,6.55,Booker Cash And Carry,CR027611,One Leisure St Ives,Catering Materials,559
http://statistics.data.gov.uk/id/local-authority/12UE,Huntingdonshire District Council,22/09/2016,195372,2102692439,5,35.15,Booker Cash And Carry,CR027611,One Leisure St Ives,Catering Materials,559
http://statistics.data.gov.uk/id/local-authority/12UE,Huntingdonshire District Council,15/09/2016,195801,2102703844,5,13.28,Booker Cash And Carry,CR027611,One Leisure St Ives,Catering Materials,559
http://statistics.data.gov.uk/id/local-authority/12UE,Huntingdonshire District Council,22/09/2016,195089,INV057931,5,461.1,Slush Puppie Ltd,CR455958,One Leisure St Ives,Catering Materials,559
http://statistics.data.gov.uk/id/local-authority/12UE,Huntingdonshire District Council,22/09/2016,195797,INV059657,5,368.88,Slush Puppie Ltd,CR455958,One Leisure St Ives,Catering Materials,559
http://statistics.data.gov.uk/id/local-authority/12UE,Huntingdonshire District Council,08/09/2016,194406,366815,5,216.37,South Lincs Food Service,CR033415,One Leisure St Ives,Catering Materials,559
http://statistics.data.gov.uk/id/local-authority/12UE,Huntingdonshire District Council,08/09/2016,195386,373154,5,142.39,South Lincs Food Service,CR033415,One Leisure St Ives,Catering Materials,559
http://statistics.data.gov.uk/id/local-authority/12UE,Huntingdonshire District Council,22/09/2016,195867,281016,5,128.7,Westminster Foodservice,CR455156,One Leisure St Ives,Catering Materials,559
http://statistics.data.gov.uk/id/local-authority/12UE,Huntingdonshire District Council,12/09/2016,194724,4122965,1,237.51,Espo,CR006566,One Leisure St Ives,Cleaning Materials,443
http://statistics.data.gov.uk/id/local-authority/12UE,Huntingdonshire District Council,08/09/2016,195386,373154,5,4.79,South Lincs Food Service,CR033415,One Leisure St Ives,Cleaning Materials,443
http://statistics.data.gov.uk/id/local-authority/12UE,Huntingdonshire District Council,08/09/2016,194824,2102668918,5,13.9,Booker Cash And Carry,CR027611,One Leisure St Ives,Confectionery,572
http://statistics.data.gov.uk/id/local-authority/12UE,Huntingdonshire District Council,08/09/2016,194406,366815,5,10.27,South Lincs Food Service,CR033415,One Leisure St Ives,Confectionery,572
http://statistics.data.gov.uk/id/local-authority/12UE,Huntingdonshire District Council,22/09/2016,195867,281016,5,35.96,Westminster Foodservice,CR455156,One Leisure St Ives,Confectionery,572
http://statistics.data.gov.uk/id/local-authority/12UE,Huntingdonshire District Council,09/09/2016,194079,13189,5,"2,811.00",I-Clean Systems Ltd,CR423141,One Leisure St Ives,Consultants,711
http://statistics.data.gov.uk/id/local-authority/12UE,Huntingdonshire District Council,15/09/2016,195522,65919,5,"9,164.06",Haven Power Ltd,CR455940,One Leisure St Ives,Electricity,420
http://statistics.data.gov.uk/id/local-authority/12UE,Huntingdonshire District Council,15/09/2016,195521,65922,5,"1,964.91",Haven Power Ltd,CR455940,One Leisure St Ives,Electricity,420
http://statistics.data.gov.uk/id/local-authority/12UE,Huntingdonshire District Council,22/09/2016,196297,20161809B,5,"1,356.00",Bootleg Sixties Llp,CR423983,One Leisure St Ives,Entertainments Inc Cable Tv,744
http://statistics.data.gov.uk/id/local-authority/12UE,Huntingdonshire District Council,09/09/2016,195573,3646,5,"5,400.00",Brian Shaw Concerts,CR422269,One Leisure St Ives,Entertainments Inc Cable Tv,744
http://statistics.data.gov.uk/id/local-authority/12UE,Huntingdonshire District Council,01/09/2016,194822,41865,5,300,Dings Entertainment,CR412228,One Leisure St Ives,Entertainments Inc Cable Tv,744
http://statistics.data.gov.uk/id/local-authority/12UE,Huntingdonshire District Council,15/09/2016,195860,DBT045-2016,5,"7,613.60",Dreamboys London Ltd,CR423460,One Leisure St Ives,Entertainments Inc Cable Tv,744
http://statistics.data.gov.uk/id/local-authority/12UE,Huntingdonshire District Council,29/09/2016,196298,MEIK-INVK0024,5,"3,184.55",Millenium Entertainment International,CR423980,One Leisure St Ives,Entertainments Inc Cable Tv,744
http://statistics.data.gov.uk/id/local-authority/12UE,Huntingdonshire District Council,15/09/2016,195798,9660,5,228,Roger Wilson Electronics,CR028041,One Leisure St Ives,Entertainments Inc Cable Tv,744
http://statistics.data.gov.uk/id/local-authority/12UE,Huntingdonshire District Council,01/09/2016,194723,8300,5,400,Starlite Roadshow,CR024127,One Leisure St Ives,Entertainments Inc Cable Tv,744
http://statistics.data.gov.uk/id/local-authority/12UE,Huntingdonshire District Council,15/09/2016,195861,8304,5,250,Starlite Roadshow,CR024127,One Leisure St Ives,Entertainments Inc Cable Tv,744
http://statistics.data.gov.uk/id/local-authority/12UE,Huntingdonshire District Council,22/09/2016,196251,PO27900,5,779.46,Starlite Roadshow,CR024127,One Leisure St Ives,Entertainments Inc Cable Tv,744
http://statistics.data.gov.uk/id/local-authority/12UE,Huntingdonshire District Council,09/09/2016,194750,947399,5,724.49,Body Power Sports Plc,CR423405,One Leisure St Ives,Equipment,500
http://statistics.data.gov.uk/id/local-authority/12UE,Huntingdonshire District Council,09/09/2016,194557,2496,5,648,Custom Made Red Carpets,CR542394,One Leisure St Ives,Equipment,500
http://statistics.data.gov.uk/id/local-authority/12UE,Huntingdonshire District Council,12/09/2016,194724,4122965,1,1.3,Espo,CR006566,One Leisure St Ives,Equipment,500
http://statistics.data.gov.uk/id/local-authority/12UE,Huntingdonshire District Council,22/09/2016,195453,77373,5,"7,382.04",Gladstone Mrm,CR405717,One Leisure St Ives,Equipment,500
http://statistics.data.gov.uk/id/local-authority/12UE,Huntingdonshire District Council,15/09/2016,195798,9660,5,262.8,Roger Wilson Electronics,CR028041,One Leisure St Ives,Equipment,500
http://statistics.data.gov.uk/id/local-authority/12UE,Huntingdonshire District Council,15/09/2016,195385,INV001552,5,"1,250.00",Lynx Bowling Services,CR455532,One Leisure St Ives,Equipment Maintenance,511
http://statistics.data.gov.uk/id/local-authority/12UE,Huntingdonshire District Council,08/09/2016,195082,16009440,5,"9,313.62",Technogym Uk Ltd,CR033037,One Leisure St Ives,Equipment Maintenance,511
http://statistics.data.gov.uk/id/local-authority/12UE,Huntingdonshire District Council,08/09/2016,195452,991164584,5,947.34,Abel Alarm Company Ltd,CR000201,One Leisure St Ives,Fire & Security,450
http://statistics.data.gov.uk/id/local-authority/12UE,Huntingdonshire District Council,01/09/2016,194760,7080570675,5,494.6,Honeywell Novar Systems,CR406826,One Leisure St Ives,Fire & Security,450
http://statistics.data.gov.uk/id/local-authority/12UE,Huntingdonshire District Council,08/09/2016,194433,4116271,1,350.4,Espo,CR006566,One Leisure St Ives,Furniture,200
http://statistics.data.gov.uk/id/local-authority/12UE,Huntingdonshire District Council,22/09/2016,196433,12489089510,5,308.32,E-On Energy,CR416430,One Leisure St Ives,Gas,421
http://statistics.data.gov.uk/id/local-authority/12UE,Huntingdonshire District Council,22/09/2016,196432,12489090950,5,"3,406.87",E-On Energy,CR416430,One Leisure St Ives,Gas,421
http://statistics.data.gov.uk/id/local-authority/12UE,Huntingdonshire District Council,09/09/2016,195058,625562,5,18.82,Lacons,CR422174,One Leisure St Ives,Gas Cylinders (Incl. Bars),567
http://statistics.data.gov.uk/id/local-authority/12UE,Huntingdonshire District Council,09/09/2016,195395,626886,5,18.23,Lacons,CR422174,One Leisure St Ives,Gas Cylinders (Incl. Bars),567
http://statistics.data.gov.uk/id/local-authority/12UE,Huntingdonshire District Council,01/09/2016,194705,SI168389,5,576.9,Fleet Line Markers Ltd,CR406897,One Leisure St Ives,Grounds Mtce Contractors,351
http://statistics.data.gov.uk/id/local-authority/12UE,Huntingdonshire District Council,01/09/2016,194442,S505169,5,345.6,Sherriff Amenity Services,CR416316,One Leisure St Ives,Grounds Mtce Contractors,351
http://statistics.data.gov.uk/id/local-authority/12UE,Huntingdonshire District Council,29/09/2016,195605,SIV135905,5,297.54,Les Mills Uk,CR025826,One Leisure St Ives,Licences,730
http://statistics.data.gov.uk/id/local-authority/12UE,Huntingdonshire District Council,22/09/2016,195372,2102692439,5,319.34,Booker Cash And Carry,CR027611,One Leisure St Ives,Materials,550
http://statistics.data.gov.uk/id/local-authority/12UE,Huntingdonshire District Council,15/09/2016,195801,2102703844,5,74.42,Booker Cash And Carry,CR027611,One Leisure St Ives,Materials,550
http://statistics.data.gov.uk/id/local-authority/12UE,Huntingdonshire District Council,12/09/2016,194724,4122965,1,93.38,Espo,CR006566,One Leisure St Ives,Materials,550
http://statistics.data.gov.uk/id/local-authority/12UE,Huntingdonshire District Council,01/09/2016,194755,SI355377-1,5,593,Rlss Uk Enterprises Ltd - Lifesavers Direct,CR401615,One Leisure St Ives,Materials,550
http://statistics.data.gov.uk/id/local-authority/12UE,Huntingdonshire District Council,01/09/2016,194716,9652,5,424.08,Roger Wilson Electronics,CR028041,One Leisure St Ives,Materials,550
http://statistics.data.gov.uk/id/local-authority/12UE,Huntingdonshire District Council,15/09/2016,195798,9660,5,63.36,Roger Wilson Electronics,CR028041,One Leisure St Ives,Materials,550
http://statistics.data.gov.uk/id/local-authority/12UE,Huntingdonshire District Council,22/09/2016,195089,INV057931,5,143.34,Slush Puppie Ltd,CR455958,One Leisure St Ives,Materials,550
http://statistics.data.gov.uk/id/local-authority/12UE,Huntingdonshire District Council,22/09/2016,195797,INV059657,5,146.87,Slush Puppie Ltd,CR455958,One Leisure St Ives,Materials,550
http://statistics.data.gov.uk/id/local-authority/12UE,Huntingdonshire District Council,08/09/2016,195386,373154,5,259.09,South Lincs Food Service,CR033415,One Leisure St Ives,Materials,550
http://statistics.data.gov.uk/id/local-authority/12UE,Huntingdonshire District Council,08/09/2016,194082,92375893,5,312.48,Speedo International Limited,CR41427,One Leisure St Ives,Materials For Resale,570
http://statistics.data.gov.uk/id/local-authority/12UE,Huntingdonshire District Council,29/09/2016,195886,12292,5,"1,184.33",Playfords Ltd,CR479055,One Leisure St Ives,Network Hardware,205
http://statistics.data.gov.uk/id/local-authority/12UE,Huntingdonshire District Council,08/09/2016,194758,16501171,5,510,Ener G Natural Power Ltd,CR132649,One Leisure St Ives,Plant & Equipment Maintenance,380
http://statistics.data.gov.uk/id/local-authority/12UE,Huntingdonshire District Council,22/09/2016,196045,426527,5,"1,356.00",Heasell Electromechanical Services Ltd,CR422407,One Leisure St Ives,Plant & Equipment Maintenance,380
http://statistics.data.gov.uk/id/local-authority/12UE,Huntingdonshire District Council,15/09/2016,195385,INV001552,5,467.64,Lynx Bowling Services,CR455532,One Leisure St Ives,Plant & Equipment Maintenance,380
http://statistics.data.gov.uk/id/local-authority/12UE,Huntingdonshire District Council,15/09/2016,195798,9660,5,72,Roger Wilson Electronics,CR028041,One Leisure St Ives,Plant & Equipment Maintenance,380
http://statistics.data.gov.uk/id/local-authority/12UE,Huntingdonshire District Council,22/09/2016,196394,16669,5,410.4,Bigprinting,CR416383,One Leisure St Ives,Printing (External),220
http://statistics.data.gov.uk/id/local-authority/12UE,Huntingdonshire District Council,22/09/2016,195859,39900,5,722,Clanpress King'S Lynn Ltd,CR413516,One Leisure St Ives,Printing (External),220
http://statistics.data.gov.uk/id/local-authority/12UE,Huntingdonshire District Council,29/09/2016,195181,14020,5,"1,440.00",Roi Software Distribution Ltd,CR422116,One Leisure St Ives,Printing (External),220
http://statistics.data.gov.uk/id/local-authority/12UE,Huntingdonshire District Council,01/09/2016,194086,1028496,5,59.76,Taylor Made Designs,CR417271,One Leisure St Ives,Protective Clothing & Uniforms,163
http://statistics.data.gov.uk/id/local-authority/12UE,Huntingdonshire District Council,08/09/2016,194436,1028655,5,549.84,Taylor Made Designs,CR417271,One Leisure St Ives,Protective Clothing & Uniforms,163
http://statistics.data.gov.uk/id/local-authority/12UE,Huntingdonshire District Council,08/09/2016,195454,SUP0004328,5,"6,905.32",Gladstone Mrm,CR405717,One Leisure St Ives,Software,206
http://statistics.data.gov.uk/id/local-authority/12UE,Huntingdonshire District Council,12/09/2016,194724,4122965,1,14.88,Espo,CR006566,One Leisure St Ives,Stationery,225
http://statistics.data.gov.uk/id/local-authority/12UE,Huntingdonshire District Council,22/09/2016,196312,SI00266572,5,78,Swimming Teachers Association,CR001032,One Leisure St Ives,Training,130
http://statistics.data.gov.uk/id/local-authority/12UE,Huntingdonshire District Council,22/09/2016,195608,749425,5,633.08,Ben Burgess & Company,CR453903,One Leisure St Ives,Vehicle Maintenance External,619
http://statistics.data.gov.uk/id/local-authority/12UE,Huntingdonshire District Council,29/09/2016,195380,SBO1045862,5,959.4,Veolia Es Uk Ltd,CR478889,One Leisure St Ives,Waste Disposal,763
http://statistics.data.gov.uk/id/local-authority/12UE,Huntingdonshire District Council,29/09/2016,196398,61703,5,144,Clubnet Limited,CR422543,One Leisure St Neots,Advertising/Promoting Services,255
http://statistics.data.gov.uk/id/local-authority/12UE,Huntingdonshire District Council,09/09/2016,194459,30215,5,"2,051.06",Hi-Spec Facilities Services Plc,CR423413,One Leisure St Neots,Building Cleaning,440
http://statistics.data.gov.uk/id/local-authority/12UE,Huntingdonshire District Council,09/09/2016,194458,30448,5,"2,051.06",Hi-Spec Facilities Services Plc,CR423413,One Leisure St Neots,Building Cleaning,440
http://statistics.data.gov.uk/id/local-authority/12UE,Huntingdonshire District Council,29/09/2016,195378,1661,5,361.5,Flexerefrigeration Ltd,CR422336,One Leisure St Neots,Building Mtce,303
http://statistics.data.gov.uk/id/local-authority/12UE,Huntingdonshire District Council,09/09/2016,193293,CD200014182,5,306.72,Integrated Water Services Ltd,CR452140,One Leisure St Neots,Building Mtce,303
http://statistics.data.gov.uk/id/local-authority/12UE,Huntingdonshire District Council,01/09/2016,194834,OLSN0005,5,339.4,Njl Property Solutions,CR423380,One Leisure St Neots,Building Mtce,303
http://statistics.data.gov.uk/id/local-authority/12UE,Huntingdonshire District Council,22/09/2016,195916,OLSN0006,5,276.31,Njl Property Solutions,CR423380,One Leisure St Neots,Building Mtce,303
http://statistics.data.gov.uk/id/local-authority/12UE,Huntingdonshire District Council,12/09/2016,194741,9647,5,916.36,Roger Wilson Electronics,CR028041,One Leisure St Neots,Building Mtce,303
http://statistics.data.gov.uk/id/local-authority/12UE,Huntingdonshire District Council,15/09/2016,195795,9662,5,564,Roger Wilson Electronics,CR028041,One Leisure St Neots,Building Mtce,303
http://statistics.data.gov.uk/id/local-authority/12UE,Huntingdonshire District Council,12/09/2016,195811,14566,5,435.24,Jade Security Services Ltd,CR422256,One Leisure St Neots,Cash Collection,702
http://statistics.data.gov.uk/id/local-authority/12UE,Huntingdonshire District Council,01/09/2016,194421,38SI3829974,5,891.13,Brenntag Uk Ltd,CR015017,One Leisure St Neots,Chemicals,551
http://statistics.data.gov.uk/id/local-authority/12UE,Huntingdonshire District Council,09/09/2016,194079,13189,5,"2,811.00",I-Clean Systems Ltd,CR423141,One Leisure St Neots,Consultants,711
http://statistics.data.gov.uk/id/local-authority/12UE,Huntingdonshire District Council,15/09/2016,195519,65914,5,"9,967.92",Haven Power Ltd,CR455940,One Leisure St Neots,Electricity,420
http://statistics.data.gov.uk/id/local-authority/12UE,Huntingdonshire District Council,08/09/2016,194428,1126058328,5,365.51,Konica Minolta,CR478866,One Leisure St Neots,Equipment,500
http://statistics.data.gov.uk/id/local-authority/12UE,Huntingdonshire District Council,22/09/2016,195909,16009841,5,"8,314.75",Technogym Uk Ltd,CR033037,One Leisure St Neots,Equipment Maintenance,511
http://statistics.data.gov.uk/id/local-authority/12UE,Huntingdonshire District Council,01/09/2016,194628,5930183,5,"1,743.04",Chubb Fire And Security Ltd,CR478924,One Leisure St Neots,Fire & Security,450
http://statistics.data.gov.uk/id/local-authority/12UE,Huntingdonshire District Council,22/09/2016,195917,5960894,5,361.52,Chubb Fire And Security Ltd,CR478924,One Leisure St Neots,Fire & Security,450
http://statistics.data.gov.uk/id/local-authority/12UE,Huntingdonshire District Council,22/09/2016,196439,12489088380,5,"2,165.59",E-On Energy,CR416430,One Leisure St Neots,Gas,421
http://statistics.data.gov.uk/id/local-authority/12UE,Huntingdonshire District Council,12/09/2016,194718,816710,5,41.74,J P Lennard Ltd,CR028595,One Leisure St Neots,Materials For Resale,570
http://statistics.data.gov.uk/id/local-authority/12UE,Huntingdonshire District Council,12/09/2016,194732,92388157,5,"1,202.71",Speedo International Limited,CR41427,One Leisure St Neots,Materials For Resale,570
http://statistics.data.gov.uk/id/local-authority/12UE,Huntingdonshire District Council,15/09/2016,196014,79452,5,304.13,Jsa Leisure Ltd,CR40187,One Leisure St Neots,Plant & Equipment Maintenance,380
http://statistics.data.gov.uk/id/local-authority/12UE,Huntingdonshire District Council,15/09/2016,195658,3717,5,298.07,Novus Compliance Services Ltd,CR423524,One Leisure St Neots,Plant & Equipment Maintenance,380
http://statistics.data.gov.uk/id/local-authority/12UE,Huntingdonshire District Council,12/09/2016,194741,9647,5,162,Roger Wilson Electronics,CR028041,One Leisure St Neots,Plant & Equipment Maintenance,380
http://statistics.data.gov.uk/id/local-authority/12UE,Huntingdonshire District Council,22/09/2016,196394,16669,5,54,Bigprinting,CR416383,One Leisure St Neots,Printing (External),220
http://statistics.data.gov.uk/id/local-authority/12UE,Huntingdonshire District Council,29/09/2016,195181,14020,5,"1,440.00",Roi Software Distribution Ltd,CR422116,One Leisure St Neots,Printing (External),220
http://statistics.data.gov.uk/id/local-authority/12UE,Huntingdonshire District Council,01/09/2016,194086,1028496,5,59.76,Taylor Made Designs,CR417271,One Leisure St Neots,Protective Clothing & Uniforms,163
http://statistics.data.gov.uk/id/local-authority/12UE,Huntingdonshire District Council,08/09/2016,195454,SUP0004328,5,"6,487.28",Gladstone Mrm,CR405717,One Leisure St Neots,Software,206
http://statistics.data.gov.uk/id/local-authority/12UE,Huntingdonshire District Council,12/09/2016,194718,816710,5,218.76,J P Lennard Ltd,CR028595,One Leisure St Neots,Sports Equipment,524
http://statistics.data.gov.uk/id/local-authority/12UE,Huntingdonshire District Council,22/09/2016,196312,SI00266572,5,78,Swimming Teachers Association,CR001032,One Leisure St Neots,Training,130
http://statistics.data.gov.uk/id/local-authority/12UE,Huntingdonshire District Council,15/09/2016,195995,71863,5,653.29,Snackline Direct Ltd,CR478090,One Leisure St Neots,Vending Materials,560
http://statistics.data.gov.uk/id/local-authority/12UE,Huntingdonshire District Council,30/09/2016,196994,72770,5,368.27,Snackline Direct Ltd,CR478090,One Leisure St Neots,Vending Materials,560
http://statistics.data.gov.uk/id/local-authority/12UE,Huntingdonshire District Council,29/09/2016,195383,SBO1045864,5,357.96,Veolia Es Uk Ltd,CR478889,One Leisure St Neots,Waste Disposal,763
http://statistics.data.gov.uk/id/local-authority/12UE,Huntingdonshire District Council,29/09/2016,196412,123913345,5,853.76,Anglian Water,CR000071,One Leisure St Neots,Water & Sewerage,432
http://statistics.data.gov.uk/id/local-authority/12UE,Huntingdonshire District Council,09/09/2016,194464,CD200008577,5,162.05,Integrated Water Services Ltd,CR452140,Parks & Open Spaces,Building Mtce,303
http://statistics.data.gov.uk/id/local-authority/12UE,Huntingdonshire District Council,09/09/2016,195539,CD200015983,5,162.05,Integrated Water Services Ltd,CR452140,Parks & Open Spaces,Building Mtce,303
http://statistics.data.gov.uk/id/local-authority/12UE,Huntingdonshire District Council,15/09/2016,195499,121573804,5,714.3,Swalec,CR407130,Parks & Open Spaces,Electricity,420
http://statistics.data.gov.uk/id/local-authority/12UE,Huntingdonshire District Council,29/09/2016,196172,INV-21199,5,"1,819.20",Cpa Horticulture Ltd,CR422458,Parks & Open Spaces,Playground Equipment,360
http://statistics.data.gov.uk/id/local-authority/12UE,Huntingdonshire District Council,29/09/2016,196737,46199,5,290.4,Hags-Smp Ltd,CR455681,Parks & Open Spaces,Playground Equipment,360
http://statistics.data.gov.uk/id/local-authority/12UE,Huntingdonshire District Council,09/09/2016,195557,CHES262,5,"2,250.00",Hampton/Chesmetalwork,CR453817,Parks & Open Spaces,Playground Equipment,360
http://statistics.data.gov.uk/id/local-authority/12UE,Huntingdonshire District Council,09/09/2016,195557,CHES262,5,"1,250.00",Hampton/Chesmetalwork,CR453817,Parks & Open Spaces,Playground Equipment,360
http://statistics.data.gov.uk/id/local-authority/12UE,Huntingdonshire District Council,08/09/2016,194378,JBC/28325/5106/,5,822,J Breheny Contractors Ltd,CR000314,Parks & Open Spaces,Playground Equipment,360
http://statistics.data.gov.uk/id/local-authority/12UE,Huntingdonshire District Council,01/09/2016,193677,23549,5,"1,438.37",Playdale Playgrounds Ltd,CR403946,Parks & Open Spaces,Playground Equipment,360
http://statistics.data.gov.uk/id/local-authority/12UE,Huntingdonshire District Council,29/09/2016,195571,24024,5,477.6,Street Process Colour Ltd,CR422705,Parks & Open Spaces,Playground Equipment,360
http://statistics.data.gov.uk/id/local-authority/12UE,Huntingdonshire District Council,08/09/2016,194892,28324/5106/JC,5,"3,067.68",J Breheny Contractors Ltd,CR000314,Parks & Open Spaces,Sitework,359
http://statistics.data.gov.uk/id/local-authority/12UE,Huntingdonshire District Council,01/09/2016,194094,JBC/28306/4663,5,"3,030.08",J Breheny Contractors Ltd,CR000314,Parks & Open Spaces,Sitework,359
http://statistics.data.gov.uk/id/local-authority/12UE,Huntingdonshire District Council,09/09/2016,194361,JBC/28322.5106/,5,822,J Breheny Contractors Ltd,CR000314,Parks & Open Spaces,Sitework,359
http://statistics.data.gov.uk/id/local-authority/12UE,Huntingdonshire District Council,08/09/2016,194362,JBC/28325/5106/,5,571.2,J Breheny Contractors Ltd,CR000314,Parks & Open Spaces,Sitework,359
http://statistics.data.gov.uk/id/local-authority/12UE,Huntingdonshire District Council,22/09/2016,196213,130359813,5,434.95,Anglian Water,CR000071,Parks & Open Spaces,Water & Sewerage,432
http://statistics.data.gov.uk/id/local-authority/12UE,Huntingdonshire District Council,09/09/2016,194459,30215,5,"3,778.27",Hi-Spec Facilities Services Plc,CR423413,Pathfinder House Site,Building Cleaning,440
http://statistics.data.gov.uk/id/local-authority/12UE,Huntingdonshire District Council,09/09/2016,194458,30448,5,"3,778.27",Hi-Spec Facilities Services Plc,CR423413,Pathfinder House Site,Building Cleaning,440
http://statistics.data.gov.uk/id/local-authority/12UE,Huntingdonshire District Council,08/09/2016,195526,40684,5,342,Dal-Rod (Camridgeshire),CR413675,Pathfinder House Site,Building Mtce,303
http://statistics.data.gov.uk/id/local-authority/12UE,Huntingdonshire District Council,22/09/2016,195157,CN15064,5,"-1,680.00",First In Service Ltd,CR422285,Pathfinder House Site,Building Mtce,303
http://statistics.data.gov.uk/id/local-authority/12UE,Huntingdonshire District Council,29/09/2016,195945,30753,5,604.8,Hi-Spec Facilities Services Plc,CR423413,Pathfinder House Site,Building Mtce,303
http://statistics.data.gov.uk/id/local-authority/12UE,Huntingdonshire District Council,09/09/2016,194464,CD200008577,5,73.5,Integrated Water Services Ltd,CR452140,Pathfinder House Site,Building Mtce,303
http://statistics.data.gov.uk/id/local-authority/12UE,Huntingdonshire District Council,09/09/2016,195539,CD200015983,5,73.5,Integrated Water Services Ltd,CR452140,Pathfinder House Site,Building Mtce,303
http://statistics.data.gov.uk/id/local-authority/12UE,Huntingdonshire District Council,01/09/2016,193669,3273,5,954,Monowa Operable Wall Systems  Ltd,CR455096,Pathfinder House Site,Building Mtce,303
http://statistics.data.gov.uk/id/local-authority/12UE,Huntingdonshire District Council,15/09/2016,195960,1020443,5,259.95,Brookes,CR422866,Pathfinder House Site,Catering,710
http://statistics.data.gov.uk/id/local-authority/12UE,Huntingdonshire District Council,08/09/2016,194329,56488,5,808.07,Maskearaid Ind Supplies,CR033423,Pathfinder House Site,Cleaning Materials,443
http://statistics.data.gov.uk/id/local-authority/12UE,Huntingdonshire District Council,15/09/2016,195520,65912,5,"10,108.46",Haven Power Ltd,CR455940,Pathfinder House Site,Electricity,420
http://statistics.data.gov.uk/id/local-authority/12UE,Huntingdonshire District Council,22/09/2016,196335,4377,5,108,Hammond Interiors Ltd,CR423537,Pathfinder House Site,Equipment,500
http://statistics.data.gov.uk/id/local-authority/12UE,Huntingdonshire District Council,22/09/2016,196431,13313569100,5,370.62,E-On Energy,CR416430,Pathfinder House Site,Gas,421
http://statistics.data.gov.uk/id/local-authority/12UE,Huntingdonshire District Council,22/09/2016,196483,3084314,5,704.4,First In Service Ltd,CR422285,Pathfinder House Site,Plant & Equipment Maintenance,380
http://statistics.data.gov.uk/id/local-authority/12UE,Huntingdonshire District Council,22/09/2016,196337,3084930,5,"2,313.60",First In Service Ltd,CR422285,Pathfinder House Site,Plant & Equipment Maintenance,380
http://statistics.data.gov.uk/id/local-authority/12UE,Huntingdonshire District Council,29/09/2016,196440,3820,5,"2,363.30",Novus Compliance Services Ltd,CR423524,Pathfinder House Site,Plant & Equipment Maintenance,380
http://statistics.data.gov.uk/id/local-authority/12UE,Huntingdonshire District Council,15/09/2016,196016,2610,5,342,Universal Safety Systems Ltd,CR478208,Pathfinder House Site,Plant & Equipment Maintenance,380
http://statistics.data.gov.uk/id/local-authority/12UE,Huntingdonshire District Council,22/09/2016,195898,PE14/1121,5,"1,050.00",Bugs,CR404182,Pest Control,Subcontractors,777
http://statistics.data.gov.uk/id/local-authority/12UE,Huntingdonshire District Council,29/09/2016,195498,15-Aug-16,5,"3,355.00",Tree Officer Outsourcing Uk Ltd,CR423131,Planning M U'S,Hired Staff,100
http://statistics.data.gov.uk/id/local-authority/12UE,Huntingdonshire District Council,29/09/2016,195529,50070294,5,"2,400.00",Haymarket Media Group Ltd,CR479500,Planning M U'S,Recruitment Costs,120
http://statistics.data.gov.uk/id/local-authority/12UE,Huntingdonshire District Council,15/09/2016,601321,FUND19851497515,6,460.8,Nottingham City Council,CR422563,Planning M U'S,Training,130
http://statistics.data.gov.uk/id/local-authority/12UE,Huntingdonshire District Council,22/09/2016,196456,16259,5,57.6,Bigprinting,CR416383,Printing External Work,Equipment Maintenance,511
http://statistics.data.gov.uk/id/local-authority/12UE,Huntingdonshire District Council,22/09/2016,196456,16259,5,429,Bigprinting,CR416383,Printing External Work,Equipment Maintenance,511
http://statistics.data.gov.uk/id/local-authority/12UE,Huntingdonshire District Council,09/09/2016,194227,JBC/28333/5106/,5,"4,313.74",J Breheny Contractors Ltd,CR000314,Property Development And Mgt,Building Mtce,303
http://statistics.data.gov.uk/id/local-authority/12UE,Huntingdonshire District Council,09/09/2016,194227,JBC/28333/5106/,5,780,J Breheny Contractors Ltd,CR000314,Property Development And Mgt,Building Mtce,303
http://statistics.data.gov.uk/id/local-authority/12UE,Huntingdonshire District Council,29/09/2016,196321,552396,5,731.68,Ecocleen Services Limited,CR406985,Public Conveniences,Building Cleaning,440
http://statistics.data.gov.uk/id/local-authority/12UE,Huntingdonshire District Council,01/09/2016,194864,IN0536121,5,"4,036.40",Staffline Group,CR416827,Recycling,Hired Staff,100
http://statistics.data.gov.uk/id/local-authority/12UE,Huntingdonshire District Council,22/09/2016,196085,IN0537593,5,"1,771.36",Staffline Group,CR416827,Recycling,Hired Staff,100
http://statistics.data.gov.uk/id/local-authority/12UE,Huntingdonshire District Council,29/09/2016,196670,IN0539539,5,"2,595.80",Staffline Group,CR416827,Recycling,Hired Staff,100
http://statistics.data.gov.uk/id/local-authority/12UE,Huntingdonshire District Council,29/09/2016,196671,IN0540784,5,"1,937.75",Staffline Group,CR416827,Recycling,Hired Staff,100
http://statistics.data.gov.uk/id/local-authority/12UE,Huntingdonshire District Council,29/09/2016,196672,IN0542393,5,"2,069.95",Staffline Group,CR416827,Recycling,Hired Staff,100
http://statistics.data.gov.uk/id/local-authority/12UE,Huntingdonshire District Council,22/09/2016,194717,I3799,5,20,Zurich Municipal,CR003638,Recycling,Insurance Excess,797
http://statistics.data.gov.uk/id/local-authority/12UE,Huntingdonshire District Council,29/09/2016,196315,92833,5,"1,990.22",Bandvulc Truck Tyres,CR406810,Recycling,Tyres,630
http://statistics.data.gov.uk/id/local-authority/12UE,Huntingdonshire District Council,01/09/2016,194349,467542I,5,577.5,A C Commercials,CR000141,Recycling,Vehicle Oil & Lubricants,626
http://statistics.data.gov.uk/id/local-authority/12UE,Huntingdonshire District Council,08/09/2016,194890,189697,5,126,Barton Petroleum,CR409205,Recycling,Vehicle Oil & Lubricants,626
http://statistics.data.gov.uk/id/local-authority/12UE,Huntingdonshire District Council,09/09/2016,194902,56163,5,165.02,Interflon,CR482679,Recycling,Vehicle Oil & Lubricants,626
http://statistics.data.gov.uk/id/local-authority/12UE,Huntingdonshire District Council,29/09/2016,195652,101399,5,"1,701.50",Red Forge Ltd,CR405690,Recycling,Vehicle Parts & Fittings,625
http://statistics.data.gov.uk/id/local-authority/12UE,Huntingdonshire District Council,22/09/2016,196232,96331026,5,177.52,Terberg Matec Uk Ltd,CR402183,Recycling,Vehicle Parts & Fittings,625
http://statistics.data.gov.uk/id/local-authority/12UE,Huntingdonshire District Council,09/09/2016,193991,3209443,5,"1,143.00",Venn Group Recruitment,CR415403,Rent Allowance National Scheme,Hired Staff,100
http://statistics.data.gov.uk/id/local-authority/12UE,Huntingdonshire District Council,09/09/2016,194306,3211698,5,682.8,Venn Group Recruitment,CR415403,Rent Allowance National Scheme,Hired Staff,100
http://statistics.data.gov.uk/id/local-authority/12UE,Huntingdonshire District Council,29/09/2016,196291,675213,5,145.2,Callcredit Ltd,CR455548,Revenue Services Mus,Enquiries,723
http://statistics.data.gov.uk/id/local-authority/12UE,Huntingdonshire District Council,08/09/2016,195577,S1061401248/FUL,5,"17,126.39",Cambridgeshire County Council,CR017440,S106 Agreements,Contribution (Paid Out),810
http://statistics.data.gov.uk/id/local-authority/12UE,Huntingdonshire District Council,22/09/2016,195162,174461,5,383.64,The Bell Brush Company,CR423411,Street Cleaning,Equipment,500
http://statistics.data.gov.uk/id/local-authority/12UE,Huntingdonshire District Council,22/09/2016,196091,IN0536124,5,"1,751.42",Staffline Group,CR416827,Street Cleaning,Hired Staff,100
http://statistics.data.gov.uk/id/local-authority/12UE,Huntingdonshire District Council,22/09/2016,196092,IN0537596,5,"1,659.80",Staffline Group,CR416827,Street Cleaning,Hired Staff,100
http://statistics.data.gov.uk/id/local-authority/12UE,Huntingdonshire District Council,22/09/2016,196093,IN0539542,5,"2,666.40",Staffline Group,CR416827,Street Cleaning,Hired Staff,100
http://statistics.data.gov.uk/id/local-authority/12UE,Huntingdonshire District Council,22/09/2016,196094,IN0540787,5,"2,586.11",Staffline Group,CR416827,Street Cleaning,Hired Staff,100
http://statistics.data.gov.uk/id/local-authority/12UE,Huntingdonshire District Council,29/09/2016,196095,IN0542396,5,"2,105.70",Staffline Group,CR416827,Street Cleaning,Hired Staff,100
http://statistics.data.gov.uk/id/local-authority/12UE,Huntingdonshire District Council,22/09/2016,196061,362048,5,887.4,Smi Group,CR423139,Street Cleaning,Protective Clothing & Uniforms,163
http://statistics.data.gov.uk/id/local-authority/12UE,Huntingdonshire District Council,29/09/2016,196315,92833,5,470.92,Bandvulc Truck Tyres,CR406810,Street Cleaning,Tyres,630
http://statistics.data.gov.uk/id/local-authority/12UE,Huntingdonshire District Council,22/09/2016,196128,1608/48556,5,714,Gullivers Truck Hire Ltd,CR477663,Street Cleaning,Vehicle Hire,607
http://statistics.data.gov.uk/id/local-authority/12UE,Huntingdonshire District Council,01/09/2016,194349,467542I,5,412.5,A C Commercials,CR000141,Street Cleaning,Vehicle Oil & Lubricants,626
http://statistics.data.gov.uk/id/local-authority/12UE,Huntingdonshire District Council,22/09/2016,196207,60219435,5,910,Aebi Schmidt,CR025706,Street Cleaning,Vehicle Parts & Fittings,625
http://statistics.data.gov.uk/id/local-authority/12UE,Huntingdonshire District Council,22/09/2016,196176,60219533,5,805.97,Aebi Schmidt,CR025706,Street Cleaning,Vehicle Parts & Fittings,625
http://statistics.data.gov.uk/id/local-authority/12UE,Huntingdonshire District Council,01/09/2016,194479,61413687,5,422.4,Johnston Engineering Ltd,CR029831,Street Cleaning,Vehicle Parts & Fittings,625
http://statistics.data.gov.uk/id/local-authority/12UE,Huntingdonshire District Council,08/09/2016,194478,61415452,5,900.72,Johnston Engineering Ltd,CR029831,Street Cleaning,Vehicle Parts & Fittings,625
http://statistics.data.gov.uk/id/local-authority/12UE,Huntingdonshire District Council,15/09/2016,194840,61418074,5,286.19,Johnston Engineering Ltd,CR029831,Street Cleaning,Vehicle Parts & Fittings,625
http://statistics.data.gov.uk/id/local-authority/12UE,Huntingdonshire District Council,22/09/2016,195646,61420569,5,286.19,Johnston Engineering Ltd,CR029831,Street Cleaning,Vehicle Parts & Fittings,625
http://statistics.data.gov.uk/id/local-authority/12UE,Huntingdonshire District Council,29/09/2016,195643,61423208,5,417.22,Johnston Engineering Ltd,CR029831,Street Cleaning,Vehicle Parts & Fittings,625
http://statistics.data.gov.uk/id/local-authority/12UE,Huntingdonshire District Council,22/09/2016,196303,34773,5,811.2,Magnum Tyres Ltd,CR479195,Street Cleaning,Vehicle Parts & Fittings,625
http://statistics.data.gov.uk/id/local-authority/12UE,Huntingdonshire District Council,29/09/2016,195652,101399,5,425.38,Red Forge Ltd,CR405690,Street Cleaning,Vehicle Parts & Fittings,625
http://statistics.data.gov.uk/id/local-authority/12UE,Huntingdonshire District Council,09/09/2016,194912,28374/4662/JC,5,"1,072.01",J Breheny Contractors Ltd,CR000314,Street Naming,Signs,565
http://statistics.data.gov.uk/id/local-authority/12UE,Huntingdonshire District Council,09/09/2016,194911,2873/4662/JC,5,"1,535.68",J Breheny Contractors Ltd,CR000314,Street Naming,Signs,565
http://statistics.data.gov.uk/id/local-authority/12UE,Huntingdonshire District Council,09/09/2016,194910,JBC/28372/4662,5,"2,421.96",J Breheny Contractors Ltd,CR000314,Street Naming,Signs,565
http://statistics.data.gov.uk/id/local-authority/12UE,Huntingdonshire District Council,22/09/2016,196409,10691935,5,"3,644.87",Cambridgeshire County Council,CR006678,Trade Refuse,Waste Disposal,763
